Workbook

Sheet Hoja1 (hidden)
A2: TIPO DE ENTIDAD O USUARIO | F2: DÍAS NO LABORABLES
A3: CIUDADANO | F3: 2022-01-01
A4: ACADEMIA | F4: 2022-01-02
A5: EMPRESA PRIVADA | F5: 2022-01-08
A6: ENTIDAD PÚBLICA | F6: 2022-01-09
A7: EXTRANJERO | F7: 2022-01-10
A8: FUNCIONARIO IDEAM | F8: 2022-01-15
A9: ONG/ORG | F9: 2022-01-16
F10: 2022-01-22
A11: GÉNERO | F11: 2022-01-23
A12: FEMENINO | F12: 2022-01-29
A13: MASCULINO | F13: 2022-01-30
A14: PERSONA JURÍDICA | F14: 2022-02-05
F15: 2022-02-06
A16: DEPENDENCIA QUE DA RESPUESTA O LA QUE SE DIRECCIONA | F16: 2022-02-12
A17: AREA OPERATIVA No. 1 | F17: 2022-02-13
A18: AREA OPERATIVA No. 2 | F18: 2022-02-19
A19: AREA OPERATIVA No. 3 | F19: 2022-01-20
A20: AREA OPERATIVA No. 4 | F20: 2022-02-26
A21: AREA OPERATIVA No. 5 | F21: 2022-02-27
A22: AREA OPERATIVA No. 6 | F22: 2022-03-05
A23: AREA OPERATIVA No. 7 | F23: 2022-03-06
A24: AREA OPERATIVA No. 8 | F24: 2022-03-12
A25: AREA OPERATIVA No. 9 | F25: 2022-03-13
A26: AREA OPERATIVA No. 10 | F26: 2022-03-19
A27: AREA OPERATIVA No. 11 | F27: 2022-03-20
A28: DIRECCIÓN GENERAL | F28: 2022-03-21
A29: GRUPO DE ADMINISTRACIÓN Y DESARROLLO DEL TALENTO HUMANO | F29: 2022-03-26
A30: GRUPO DE COMUNICACIONES | F30: 2022-03-27
A31: GRUPO DE CONTABILIDAD | F31: 2022-04-02
A32: GRUPO DE CONTROL DISCIPLINARIO INTERNO | F32: 2022-04-09
A33: GRUPO DE GESTIÓN DOCUMENTAL Y CENTRO DE DOCUMENTACIÓN | F33: 2022-04-10
A34: GRUPO DE PRESUPUESTO | F34: 2022-04-14
A35: GRUPO DE SERVICIO AL CIUDADANO | F35: 2022-04-15
A36: GRUPO DE SERVICIOS ADMINISTRATIVOS | F36: 2022-04-16
A37: GRUPO DE TESORERÍA | F37: 2022-04-17
A38: OFICINA ASESORA DE PLANEACIÓN | F38: 2022-04-23
A39: OFICINA ASESORA JURÍDICA | F39: 2022-04-24
A40: OFICINA DE CONTROL INTERNO | F40: 2022-04-30
A41: OFICINA DE INFORMÁTICA | F41: 2022-05-01
A42: OFICINA DEL SERVICIO DE PRONÓSTICOS Y ALERTAS | F42: 2021-05-01
A43: SECRETARÍA GENERAL | F43: 2022-05-07
A44: SUBDIRECCIÓN DE ECOSISTEMAS E INFORMACIÓN AMBIENTAL | F44: 2022-05-08
A45: SUBDIRECCIÓN DE ESTUDIOS AMBIENTALES | F45: 2022-05-14
A46: SUBDIRECCIÓN DE HIDROLOGÍA | F46: 2022-05-15
A47: SUBDIRECCIÓN DE METEOROLOGÍA | F47: 2022-05-21
F48: 2022-05-22
A49: TIPO DE REQUERIMIENTO | B49: Término | C49: Prorroga | F49: 2022-05-28
A50: AGRADECIMIENTO/FELICITACION | B50: 15 | C50: 15 | F50: 2022-05-29
A51: CERTIFICACIONES DE TIEMPO, CLIMA Y EVENTOS HIDROLÓGICOS | B51: 30 | C51: 30 | F51: 2022-05-30
A52: CONSULTA | B52: 30 | C52: 30 | F52: 2022-06-04
A53: DENUNCIA | B53: 15 | C53: 15 | F53: 2022-06-05
A54: PETICIÓN | B54: 15 | C54: 15 | F54: 2022-06-11
A55: PETICIÓN ENTRE AUTORIDADES | B55: 10 | C55: 10 | F55: 2022-06-12
A56: PETICION VERBAL | B56: 15 | C56: 15 | F56: 2022-06-18
A57: QUEJA | B57: 15 | C57: 15 | F57: 2022-06-19
A58: RECLAMO | B58: 15 | C58: 15 | F58: 2022-06-20
A59: REMISIÓN POR COMPETENCIA | B59: 5 | F59: 2022-06-25
A60: SOLICITUD CONGRESITAS | B60: 5 | C60: 5 | F60: 2022-06-26
A61: SOLICITUD DE INFORMACIÓN Y DOCUMENTOS | B61: 10 | C61: 10 | F61: 2022-06-27
A62: SOLICITUD JUDICIAL | B62: 5 | C62: 5 | F62: 2022-07-02
A63: SUGERENCIA | B63: 15 | C63: 15 | F63: 2022-07-03
F64: 2022-07-09
A65: PRODUCTO O SERVICIO | F65: 2022-07-10
A66: ACREDITACIÓN DE LABORATORIOS | F66: 2022-07-16
A67: ADMINISTRATIVA | F67: 2022-07-17
A68: AGUAS SUBTERRANEAS | F68: 2022-07-20
A69: ASESORÍAS Y CHARLAS | F69: 2022-07-23
A70: BOSQUES | F70: 2022-07-24
A71: CAMBIO CLIMÁTICO | F71: 2022-07-30
A72: CERTIFICACIONES DE TIEMPO Y CLIMA | F72: 2022-07-31
A73: CERTIFICACIONES HIDROLOGICAS | F73: 2022-08-06
A74: CLIMATOLOGÍA | F74: 2022-08-07
A75: ERA | B75: EVALUACIÓN REGIONAL DEL AGUA | F75: 2022-08-13
A76: ESTUDIO NACIONAL DEL AGUA | F76: 2024-08-14
A77: INFORMES AMBIENTALES | F77: 2022-08-15
A78: JURIDICO | F78: 2022-08-20
A79: LABORATORIO DE CALIDAD AMBIENTAL | F79: 2022-08-21
A80: MEDIOS DE COMUNICACIÓN | F80: 2022-08-27
A81: METEOROLOGÍA AERONAÚTICA | F81: 2022-08-28
A82: MODELACIÓN HIDROLÓGICA | F82: 2022-09-03
A83: MODELAMIENTO METEOROLÓGICO | F83: 2022-09-04
A84: OPERACIÓN DE REDES | F84: 2022-09-10
A85: PRONÓSTICOS Y ALERTAS | F85: 2022-09-11
A86: REGISTROS AMBIENTALES | F86: 2022-09-17
A87: SEDIMENTOS | F87: 2022-09-18
A88: SIA | B88: SISTEMA DE INFORMACIÓN AMBIENTAL | F88: 2022-09-24
A89: SIRH | B89: SISTEMA DE INFORMACIÓN DEL RECURDO HÍDRICO | F89: 2022-09-25
A90: SOLICITUD DE INFORMACIÓN HIDROMETEOROLÓGICA | F90: 2022-10-01
A91: SUELOS Y TIERRAS | F91: 2022-10-02
A92: VISITAS ACADÉMICAS | F92: 2022-10-08
A93: WEB Y CORREO | F93: 2022-10-09
A94: ZONIFICACIÓN HIDROGRÁFICA | F94: 2022-10-15
F95: 2022-10-16
A96: MEDIO DE RECEPCIÓN | F96: 2022-10-17
A97: ATENCIÓN PRESENCIAL | F97: 2022-10-22
A98: ATENCIÓN TELEFÓNICA | F98: 2022-10-23
A99: BUZÓN DE SUGERENCIAS | F99: 2022-10-29
A100: CHAT | F100: 2022-10-30
A101: CORREO CERTIFICADO | F101: 2022-11-05
A102: CORREO ELECTRÓNICO | F102: 2022-11-06
A103: FAX | F103: 2022-11-07
A104: INTERNO | F104: 2022-11-12
A105: MODULO CONTACTENOS | F105: 2022-11-13
A106: WEB (MÓDULO DE SOLICITUD DE INFORMACIÓN HIDROMETEOROLÓGICA) | F106: 2022-11-14
F107: 2022-11-19
A108: ¿REQUERIMIENTO FUE ESCALADO? | F108: 2022-11-20
A109: SI | F109: 2022-11-26
A110: NO | F110: 2022-11-27
F111: 2022-12-03
A112: CANAL POR EL CUAL FUE RESUELTO EL REQUERIMIENTO | F112: 2022-12-04
A113: CORREO ELECTRÓNICO | F113: 2022-12-08
A114: CORREO CERTIFICADO | F114: 2022-12-10
F115: 2022-12-11
F116: 2022-12-17
F117: 2022-12-24
F118: 2022-12-25
F119: 2022-12-31

Sheet REGISTRO_PQRS
D1: Proceso: Gestión del Servicio al Ciudadano Seguimiento y control PQRSDF | R1: Código: GSC-F012
R2: Versión: 04
R3: Fecha: 12/09/2024
B5: Dependencia: Grupo de Servicio al Ciudadano
B7: Período de Reporte: Tercer trimestre 2025
A9: DATOS DEL REQUERIMIENTO | D9: DATOS USUARIO | E9: POSTURA DE REQUERIMIENTO | H9: RESOLUCION DEL REQUERIMIENTO | L9: ANÁLISIS DE RESPUESTAS
A10: No. | B10: No. DE REQUERIMIENTO | C10: FECHA DE REQUERIMIENTO (dd/mm/aaaa) | D10: TIPO DE ENTIDAD O USUARIO | E10: MEDIO RECEPCIÓN | F10: TIPO DE REQUERIMIENTO | G10: PRODUCTO O SERVICIO AL CUAL SE REFIERE EL REQUERIMIENTO | H10: ¿ EL REQUERIMIENTO FUE ESCALADO? | I10: DEPENDENCIA QUE DA RESPUESTA O A LA QUE SE DIRECCIONA | J10: FECHA DE RESOLUCIÓN DEL REQUERIMIENTO (dd/mm/aaaa) | K10: CANAL POR EL CUAL FUE RESUELTO EL REQUERIMIENTO | L10: FECHA OPORTUNA DE RESPUESTA | M10: PRORROGA | N10: FECHA RESOLUCIÓN PRORROGA | O10: FECHA RESPUESTA DE PRORROGA | P10: ESTADO DE RESPUESTA DE LA PRORROGA | Q10: ESTADO (A TIEMPO, FUERA DE TIEMPO, SIN RESPUESTA) | R10: TIEMPO QUE TARDÓ EN DAR RESPUESTA | S10: DÍAS VENCIDOS CON RESPECTO A FECHA OPORTUNA DE RESPUESTA
A11: =IF(B11<>"",1,"") -> 1 | B11: 20259050108404 | C11: 2025-07-01 | D11: Persona natural | E11: Formulario PQRSDF | F11: Solicitud de documentos o información | G11: Solicitud de información hidrometeorológica | I11: Grupo de Servicio al Ciudadano | J11: 2025-07-08 | K11: Correo electrónico | L11: 2025-07-15 | Q11: A TIEMPO | R11: 5 | S11: 0 | U11: =IFERROR(VLOOKUP(F11,Hoja1!$A$50:$C$63,2),"") -> 5 | V11: =IFERROR(VLOOKUP(F11,Hoja1!$A$50:$C$63,3),"") -> 5
A12: =IF(B12<>"",A11+1,"") -> 2 | B12: 20259910108414 | C12: 2025-07-01 | D12: Persona natural | E12: Virtual - Correo electrónico | F12: Solicitud de documentos o información | G12: Sistema de información ambiental | I12: Subdirección de Estudios Ambientales | J12: 2025-07-16 | K12: Correo electrónico | L12: 2025-07-15 | Q12: FUERA DE TIEMPO | R12: 11 | S12: 1 | U12: =IFERROR(VLOOKUP(F12,Hoja1!$A$50:$C$63,2),"") -> 5 | V12: =IFERROR(VLOOKUP(F12,Hoja1!$A$50:$C$63,3),"") -> 5
A13: =IF(B13<>"",A12+1,"") -> 3 | B13: 20259910108434 | C13: 2025-07-01 | D13: Persona jurídica | E13: Virtual - Correo electrónico | F13: Solicitud de documentos o información | G13: Registros ambientales | I13: Subdirección de Estudios Ambientales | J13: 2025-07-02 | K13: Correo electrónico | L13: 2025-07-15 | Q13: A TIEMPO | R13: 1 | S13: 0 | U13: =IFERROR(VLOOKUP(F13,Hoja1!$A$50:$C$63,2),"") -> 5 | V13: =IFERROR(VLOOKUP(F13,Hoja1!$A$50:$C$63,3),"") -> 5
A14: 4 | B14: 20259910108444 | C14: 2025-07-01 | D14: Persona jurídica | E14: Virtual - Correo electrónico | F14: Certificación de tiempo, clima y eventos hidrológicos | G14: Certificaciones del tiempo y clima | I14: Subdirección de Meteorología | J14: 2025-08-08 | K14: Correo electrónico | L14: 2025-08-13 | Q14: A TIEMPO | R14: 27 | S14: 0 | U14: =IFERROR(VLOOKUP(F14,Hoja1!$A$50:$C$63,2),"") -> 15 | V14: =IFERROR(VLOOKUP(F14,Hoja1!$A$50:$C$63,3),"") -> 15
A15: 5 | B15: 20259050108464 | C15: 2025-07-01 | D15: Persona jurídica | E15: Formulario PQRSDF | F15: Solicitud de documentos o información | G15: Registros ambientales | I15: Subdirección de Estudios Ambientales | J15: 2025-07-03 | K15: Correo electrónico | L15: 2025-07-15 | Q15: A TIEMPO | R15: 2 | S15: 0 | U15: =IFERROR(VLOOKUP(F15,Hoja1!$A$50:$C$63,2),"") -> 5 | V15: =IFERROR(VLOOKUP(F15,Hoja1!$A$50:$C$63,3),"") -> 5
A16: 6 | B16: 20259050108544 | C16: 2025-07-01 | D16: Persona natural | E16: Formulario PQRSDF | F16: Certificación de contrato | G16: Administrativa | I16: Oficina Asesora Jurídica | J16: 2025-07-04 | K16: Correo electrónico | L16: 2025-07-22 | Q16: A TIEMPO | R16: 3 | S16: 0 | U16: =IFERROR(VLOOKUP(F16,Hoja1!$A$50:$C$63,2),"") -> 15 | V16: =IFERROR(VLOOKUP(F16,Hoja1!$A$50:$C$63,3),"") -> 15
A17: 7 | B17: 20259910108554 | C17: 2025-07-01 | D17: Persona jurídica | E17: Virtual - Correo electrónico | F17: Solicitud de documentos o información | G17: Registros ambientales | I17: Subdirección de Estudios Ambientales | J17: 2025-07-02 | K17: Correo electrónico | L17: 2025-07-15 | Q17: A TIEMPO | R17: 1 | S17: 0 | U17: =IFERROR(VLOOKUP(F17,Hoja1!$A$50:$C$63,2),"") -> 5 | V17: =IFERROR(VLOOKUP(F17,Hoja1!$A$50:$C$63,3),"") -> 5
A18: 8 | B18: 20259910108564 | C18: 2025-07-01 | D18: Persona jurídica | E18: Virtual - Correo electrónico | F18: Petición de congresistas | G18: Bosques | I18: Subdirección de Ecosistemas e Información Ambiental | J18: 2025-07-08 | K18: Correo electrónico | L18: 2025-07-08 | Q18: A TIEMPO | R18: 5 | S18: 0 | U18: =IFERROR(VLOOKUP(F18,Hoja1!$A$50:$C$63,2),"") -> 15 | V18: =IFERROR(VLOOKUP(F18,Hoja1!$A$50:$C$63,3),"") -> 15
A19: 9 | B19: 20259910108654 | C19: 2025-07-01 | D19: Persona jurídica | E19: Virtual - Correo electrónico | F19: Solicitud de documentos o información | G19: Registros ambientales | I19: Subdirección de Estudios Ambientales | J19: 2025-07-04 | K19: Correo electrónico | L19: 2025-07-15 | Q19: A TIEMPO | R19: 3 | S19: 0 | U19: =IFERROR(VLOOKUP(F19,Hoja1!$A$50:$C$63,2),"") -> 5 | V19: =IFERROR(VLOOKUP(F19,Hoja1!$A$50:$C$63,3),"") -> 5
A20: 10 | B20: 20259910108674 | C20: 2025-07-01 | D20: Persona natural | E20: Virtual - Correo electrónico | F20: Petición de interés general o particular | G20: Administrativa | I20: Subdirección de Hidrología | J20: 2025-08-03 | K20: Correo electrónico | L20: 2025-07-22 | Q20: FUERA DE TIEMPO | R20: 23 | S20: 8 | U20: =IFERROR(VLOOKUP(F20,Hoja1!$A$50:$C$63,2),"") -> 15 | V20: =IFERROR(VLOOKUP(F20,Hoja1!$A$50:$C$63,3),"") -> 15
A21: 11 | B21: 20259910108814 | C21: 2025-07-01 | D21: Persona natural | E21: Virtual - Correo electrónico | F21: Certificación laboral o pasantía | G21: Administrativa | I21: Grupo de Administración y Desarrollo del Talento Humano | J21: 2025-07-08 | K21: Correo electrónico | L21: 2025-07-15 | Q21: A TIEMPO | R21: 5 | S21: 0 | U21: =IFERROR(VLOOKUP(F21,Hoja1!$A$50:$C$63,2),"") -> 15 | V21: =IFERROR(VLOOKUP(F21,Hoja1!$A$50:$C$63,3),"") -> 15
A22: 12 | B22: 20259910108824 | C22: 2025-07-01 | D22: Persona jurídica | E22: Virtual - Correo electrónico | F22: Solicitud de documentos o información | G22: Registros ambientales | I22: Subdirección de Estudios Ambientales | J22: 2025-07-04 | K22: Correo electrónico | L22: 2025-07-15 | Q22: A TIEMPO | R22: 3 | S22: 0 | U22: =IFERROR(VLOOKUP(F22,Hoja1!$A$50:$C$63,2),"") -> 5 | V22: =IFERROR(VLOOKUP(F22,Hoja1!$A$50:$C$63,3),"") -> 5
A23: 13 | B23: 20259910108834 | C23: 2025-07-01 | D23: Persona jurídica | E23: Virtual - Correo electrónico | F23: Solicitud de documentos o información | G23: Sistema de información del recurso hídrico | I23: Subdirección de Hidrología | J23: 2025-07-11 | K23: Correo electrónico | L23: 2025-07-15 | Q23: A TIEMPO | R23: 8 | S23: 0 | U23: =IFERROR(VLOOKUP(F23,Hoja1!$A$50:$C$63,2),"") -> 5 | V23: =IFERROR(VLOOKUP(F23,Hoja1!$A$50:$C$63,3),"") -> 5
A24: 14 | B24: 20259910108894 | C24: 2025-07-01 | D24: Persona jurídica | E24: Virtual - Correo electrónico | F24: Solicitud de documentos o información | G24: Solicitud de información hidrometeorológica | I24: Grupo de Servicio al Ciudadano | J24: 2025-07-10 | K24: Correo electrónico | L24: 2025-07-15 | Q24: A TIEMPO | R24: 7 | S24: 0 | U24: =IFERROR(VLOOKUP(F24,Hoja1!$A$50:$C$63,2),"") -> 5 | V24: =IFERROR(VLOOKUP(F24,Hoja1!$A$50:$C$63,3),"") -> 5
A25: 15 | B25: 20259050108914 | C25: 2025-07-01 | D25: Persona natural | E25: Formulario PQRSDF | F25: Solicitud de documentos o información | G25: Solicitud de información hidrometeorológica | I25: Grupo de Servicio al Ciudadano | J25: 2025-07-08 | K25: Correo electrónico | L25: 2025-07-15 | Q25: A TIEMPO | R25: 5 | S25: 0 | U25: =IFERROR(VLOOKUP(F25,Hoja1!$A$50:$C$63,2),"") -> 5 | V25: =IFERROR(VLOOKUP(F25,Hoja1!$A$50:$C$63,3),"") -> 5
A26: 16 | B26: 20259910108944 | C26: 2025-07-01 | D26: Persona natural | E26: Virtual - Correo electrónico | F26: Solicitud de documentos o información | G26: Solicitud de información hidrometeorológica | I26: Grupo de Servicio al Ciudadano | J26: 2025-07-08 | K26: Correo electrónico | L26: 2025-07-15 | Q26: A TIEMPO | R26: 5 | S26: 0 | U26: =IFERROR(VLOOKUP(F26,Hoja1!$A$50:$C$63,2),"") -> 5 | V26: =IFERROR(VLOOKUP(F26,Hoja1!$A$50:$C$63,3),"") -> 5
A27: 17 | B27: 20259910108964 | C27: 2025-07-01 | D27: Persona jurídica | E27: Virtual - Correo electrónico | F27: Solicitud de documentos o información | G27: Registros ambientales | I27: Subdirección de Estudios Ambientales | J27: 2025-07-03 | K27: Correo electrónico | L27: 2025-07-15 | Q27: A TIEMPO | R27: 2 | S27: 0 | U27: =IFERROR(VLOOKUP(F27,Hoja1!$A$50:$C$63,2),"") -> 5 | V27: =IFERROR(VLOOKUP(F27,Hoja1!$A$50:$C$63,3),"") -> 5
A28: 18 | B28: 20259050109024 | C28: 2025-07-01 | D28: Persona natural | E28: Formulario PQRSDF | F28: Solicitud de documentos o información | G28: Solicitud de información hidrometeorológica | I28: Subdirección de Meteorología | J28: 2025-07-10 | K28: Correo electrónico | L28: 2025-07-15 | Q28: A TIEMPO | R28: 7 | S28: 0 | U28: =IFERROR(VLOOKUP(F28,Hoja1!$A$50:$C$63,2),"") -> 5 | V28: =IFERROR(VLOOKUP(F28,Hoja1!$A$50:$C$63,3),"") -> 5
A29: 19 | B29: 20259910109044 | C29: 2025-07-01 | D29: Persona jurídica | E29: Virtual - Correo electrónico | F29: Solicitud de documentos o información | G29: Registros ambientales | I29: Subdirección de Estudios Ambientales | J29: 2025-07-03 | K29: Correo electrónico | L29: 2025-07-15 | Q29: A TIEMPO | R29: 2 | S29: 0 | U29: =IFERROR(VLOOKUP(F29,Hoja1!$A$50:$C$63,2),"") -> 5 | V29: =IFERROR(VLOOKUP(F29,Hoja1!$A$50:$C$63,3),"") -> 5
A30: 20 | B30: 20259910109064 | C30: 2025-07-01 | D30: Persona jurídica | E30: Virtual - Correo electrónico | F30: Solicitud de documentos o información | G30: Registros ambientales | I30: Subdirección de Estudios Ambientales | J30: 2025-07-02 | K30: Correo electrónico | L30: 2025-07-15 | Q30: A TIEMPO | R30: 1 | S30: 0 | U30: =IFERROR(VLOOKUP(F30,Hoja1!$A$50:$C$63,2),"") -> 5 | V30: =IFERROR(VLOOKUP(F30,Hoja1!$A$50:$C$63,3),"") -> 5
A31: 21 | B31: 20259910109084 | C31: 2025-07-01 | D31: Persona jurídica | E31: Virtual - Correo electrónico | F31: Solicitud de documentos o información | G31: Registros ambientales | I31: Subdirección de Estudios Ambientales | J31: 2025-07-04 | K31: Correo electrónico | L31: 2025-07-15 | Q31: A TIEMPO | R31: 3 | S31: 0 | U31: =IFERROR(VLOOKUP(F31,Hoja1!$A$50:$C$63,2),"") -> 5 | V31: =IFERROR(VLOOKUP(F31,Hoja1!$A$50:$C$63,3),"") -> 5
A32: 22 | B32: 20259910109104 | C32: 2025-07-01 | D32: Persona jurídica | E32: Virtual - Correo electrónico | F32: Solicitud de documentos o información | G32: Registros ambientales | I32: Subdirección de Meteorología | J32: 2025-07-22 | K32: Correo electrónico | M32: Si | N32: 2025-07-29 | O32: 2025-07-15 | P32: A TIEMPO | Q32: A TIEMPO | R32: 15 | S32: 0 | U32: =IFERROR(VLOOKUP(F32,Hoja1!$A$50:$C$63,2),"") -> 5 | V32: =IFERROR(VLOOKUP(F32,Hoja1!$A$50:$C$63,3),"") -> 5
A33: 23 | B33: 20259050109114 | C33: 2025-07-01 | D33: Persona natural | E33: Formulario PQRSDF | F33: Solicitud de documentos o información | G33: Sistema de información del recurso hídrico | I33: Grupo de Servicio al Ciudadano | J33: 2025-07-11 | K33: Correo electrónico | L33: 2025-07-15 | Q33: A TIEMPO | R33: 8 | S33: 0 | U33: =IFERROR(VLOOKUP(F33,Hoja1!$A$50:$C$63,2),"") -> 5 | V33: =IFERROR(VLOOKUP(F33,Hoja1!$A$50:$C$63,3),"") -> 5
A34: 24 | B34: 20259910109134 | C34: 2025-07-01 | D34: Persona jurídica | E34: Virtual - Correo electrónico | F34: Solicitud de documentos o información | G34: Solicitud de información hidrometeorológica | I34: Subdirección de Meteorología | J34: 2025-07-10 | K34: Correo electrónico | L34: 2025-07-15 | Q34: A TIEMPO | R34: 7 | S34: 0 | U34: =IFERROR(VLOOKUP(F34,Hoja1!$A$50:$C$63,2),"") -> 5 | V34: =IFERROR(VLOOKUP(F34,Hoja1!$A$50:$C$63,3),"") -> 5
A35: 25 | B35: 20259910109154 | C35: 2025-07-01 | D35: Persona jurídica | E35: Virtual - Correo electrónico | F35: Solicitud de documentos o información | G35: Registros ambientales | I35: Subdirección de Estudios Ambientales | J35: 2025-07-03 | K35: Correo electrónico | L35: 2025-07-15 | Q35: A TIEMPO | R35: 2 | S35: 0 | U35: =IFERROR(VLOOKUP(F35,Hoja1!$A$50:$C$63,2),"") -> 5 | V35: =IFERROR(VLOOKUP(F35,Hoja1!$A$50:$C$63,3),"") -> 5
A36: 26 | B36: 20259910109204 | C36: 2025-07-01 | D36: Persona jurídica | E36: Virtual - Correo electrónico | F36: Petición de congresistas | G36: Sistema de información ambiental | I36: Subdirección de Estudios Ambientales | J36: 2025-07-08 | K36: Correo electrónico | L36: 2025-07-08 | Q36: A TIEMPO | R36: 5 | S36: 0 | U36: =IFERROR(VLOOKUP(F36,Hoja1!$A$50:$C$63,2),"") -> 15 | V36: =IFERROR(VLOOKUP(F36,Hoja1!$A$50:$C$63,3),"") -> 15
A37: 27 | B37: 20259910109294 | C37: 2025-07-01 | D37: Persona natural | E37: Virtual - Correo electrónico | F37: Solicitud de documentos o información | G37: Administrativa | I37: Grupo de Administración y Desarrollo del Talento Humano | J37: 2025-07-08 | K37: Correo electrónico | L37: 2025-07-15 | Q37: A TIEMPO | R37: 5 | S37: 0 | U37: =IFERROR(VLOOKUP(F37,Hoja1!$A$50:$C$63,2),"") -> 5 | V37: =IFERROR(VLOOKUP(F37,Hoja1!$A$50:$C$63,3),"") -> 5
A38: 28 | B38: 20259910109334 | C38: 2025-07-01 | D38: Persona jurídica | E38: Virtual - Correo electrónico | F38: Solicitud de documentos o información | G38: Registros ambientales | I38: Subdirección de Estudios Ambientales | J38: 2025-07-04 | K38: Correo electrónico | L38: 2025-07-15 | Q38: A TIEMPO | R38: 3 | S38: 0 | U38: =IFERROR(VLOOKUP(F38,Hoja1!$A$50:$C$63,2),"") -> 5 | V38: =IFERROR(VLOOKUP(F38,Hoja1!$A$50:$C$63,3),"") -> 5
A39: 29 | B39: 20259910109344 | C39: 2025-07-01 | D39: Persona jurídica | E39: Virtual - Correo electrónico | F39: Petición entre autoridades | G39: Registros ambientales | I39: Subdirección de Estudios Ambientales | J39: 2025-07-09 | K39: Correo electrónico | L39: 2025-07-15 | Q39: A TIEMPO | R39: 6 | S39: 0 | U39: =IFERROR(VLOOKUP(F39,Hoja1!$A$50:$C$63,2),"") -> 10 | V39: =IFERROR(VLOOKUP(F39,Hoja1!$A$50:$C$63,3),"") -> 10
A40: 30 | B40: 20259050109354 | C40: 2025-07-01 | D40: Persona jurídica | E40: Formulario PQRSDF | F40: Certificación de tiempo, clima y eventos hidrológicos | G40: Certificaciones del tiempo y clima | I40: Subdirección de Meteorología | J40: 2025-08-11 | K40: Correo electrónico | L40: 2025-08-13 | Q40: A TIEMPO | R40: 28 | S40: 0 | U40: =IFERROR(VLOOKUP(F40,Hoja1!$A$50:$C$63,2),"") -> 15 | V40: =IFERROR(VLOOKUP(F40,Hoja1!$A$50:$C$63,3),"") -> 15
A41: 31 | B41: 20259910109394 | C41: 2025-07-01 | D41: Persona jurídica | E41: Virtual - Correo electrónico | F41: Solicitud de documentos o información | G41: Administrativa | I41: Grupo de Gestión Documental y Centro de Documentación | J41: 2025-07-07 | K41: Correo electrónico | L41: 2025-07-15 | Q41: A TIEMPO | R41: 4 | S41: 0 | U41: =IFERROR(VLOOKUP(F41,Hoja1!$A$50:$C$63,2),"") -> 5 | V41: =IFERROR(VLOOKUP(F41,Hoja1!$A$50:$C$63,3),"") -> 5
A42: 32 | B42: 20259050109404 | C42: 2025-07-01 | D42: Persona natural | E42: Formulario PQRSDF | F42: Solicitud de documentos o información | G42: Solicitud de información hidrometeorológica | I42: Grupo de Servicio al Ciudadano | J42: 2025-07-10 | K42: Correo electrónico | L42: 2025-07-15 | Q42: A TIEMPO | R42: 7 | S42: 0 | U42: =IFERROR(VLOOKUP(F42,Hoja1!$A$50:$C$63,2),"") -> 5 | V42: =IFERROR(VLOOKUP(F42,Hoja1!$A$50:$C$63,3),"") -> 5
A43: 33 | B43: 20259910109414 | C43: 2025-07-01 | D43: Persona jurídica | E43: Virtual - Correo electrónico | F43: Solicitud de documentos o información | G43: Registros ambientales | I43: Subdirección de Estudios Ambientales | J43: 2025-07-11 | K43: Correo electrónico | L43: 2025-07-15 | Q43: A TIEMPO | R43: 8 | S43: 0 | U43: =IFERROR(VLOOKUP(F43,Hoja1!$A$50:$C$63,2),"") -> 5 | V43: =IFERROR(VLOOKUP(F43,Hoja1!$A$50:$C$63,3),"") -> 5
A44: 34 | B44: 20259910109424 | C44: 2025-07-01 | D44: Persona jurídica | E44: Virtual - Correo electrónico | F44: Consulta (Información técnica) | G44: Bosques | I44: Subdirección de Ecosistemas e Información Ambiental | J44: 2025-08-13 | K44: Correo electrónico | M44: Si | N44: 2025-09-25 | O44: 2025-08-13 | P44: A TIEMPO | Q44: A TIEMPO | R44: 30 | S44: 0 | U44: =IFERROR(VLOOKUP(F44,Hoja1!$A$50:$C$63,2),"") -> 30 | V44: =IFERROR(VLOOKUP(F44,Hoja1!$A$50:$C$63,3),"") -> 30
A45: 35 | B45: 20259910109434 | C45: 2025-07-01 | D45: Persona natural | E45: Virtual - Correo electrónico | F45: Certificación laboral o pasantía | G45: Administrativa | I45: Grupo de Administración y Desarrollo del Talento Humano | J45: 2025-07-02 | K45: Correo electrónico | L45: 2025-07-15 | Q45: A TIEMPO | R45: 1 | S45: 0 | U45: =IFERROR(VLOOKUP(F45,Hoja1!$A$50:$C$63,2),"") -> 15 | V45: =IFERROR(VLOOKUP(F45,Hoja1!$A$50:$C$63,3),"") -> 15
A46: 36 | B46: 20259910109564 | C46: 2025-07-02 | D46: Persona jurídica | E46: Virtual - Correo electrónico | F46: Solicitud judicial | G46: Cambio climático | I46: Subdirección de Estudios Ambientales | J46: 2025-07-07 | K46: Correo electrónico | L46: 2025-07-09 | Q46: A TIEMPO | R46: 3 | S46: 0 | U46: =IFERROR(VLOOKUP(F46,Hoja1!$A$50:$C$63,2),"") -> 5 | V46: =IFERROR(VLOOKUP(F46,Hoja1!$A$50:$C$63,3),"") -> 5
A47: 37 | B47: 20259910109624 | C47: 2025-07-02 | D47: Persona natural | E47: Virtual - Correo electrónico | F47: Certificación laboral o pasantía | G47: Administrativa | I47: Grupo de Administración y Desarrollo del Talento Humano | J47: 2025-07-03 | K47: Correo electrónico | L47: 2025-07-16 | Q47: A TIEMPO | R47: 1 | S47: 0 | U47: =IFERROR(VLOOKUP(F47,Hoja1!$A$50:$C$63,2),"") -> 15 | V47: =IFERROR(VLOOKUP(F47,Hoja1!$A$50:$C$63,3),"") -> 15
A48: 38 | B48: 20259910109584 | C48: 2025-07-02 | D48: Persona jurídica | E48: Virtual - Correo electrónico | F48: Solicitud de documentos o información | G48: Registros ambientales | I48: Subdirección de Estudios Ambientales | J48: 2025-07-03 | K48: Correo electrónico | L48: 2025-07-16 | Q48: A TIEMPO | R48: 1 | S48: 0 | U48: =IFERROR(VLOOKUP(F48,Hoja1!$A$50:$C$63,2),"") -> 5 | V48: =IFERROR(VLOOKUP(F48,Hoja1!$A$50:$C$63,3),"") -> 5
A49: =IF(B49<>"",A48+1,"") -> 39 | B49: 20259910109594 | C49: 2025-07-02 | D49: Persona jurídica | E49: Virtual - Correo electrónico | F49: Certificación de tiempo, clima y eventos hidrológicos | G49: Certificaciones del tiempo y clima | I49: Subdirección de Meteorología | J49: 2025-08-13 | K49: Correo electrónico | L49: 2025-08-14 | Q49: A TIEMPO | R49: 29 | S49: 0 | U49: =IFERROR(VLOOKUP(F49,Hoja1!$A$50:$C$63,2),"") -> 15 | V49: =IFERROR(VLOOKUP(F49,Hoja1!$A$50:$C$63,3),"") -> 15
A50: 40 | B50: 20259910109674 | C50: 2025-07-02 | D50: Persona jurídica | E50: Virtual - Correo electrónico | F50: Certificación de tiempo, clima y eventos hidrológicos | G50: Certificaciones del tiempo y clima | I50: Subdirección de Meteorología | J50: 2025-08-13 | K50: Correo electrónico | L50: 2025-08-14 | Q50: A TIEMPO | R50: 29 | S50: 0 | U50: =IFERROR(VLOOKUP(F50,Hoja1!$A$50:$C$63,2),"") -> 15 | V50: =IFERROR(VLOOKUP(F50,Hoja1!$A$50:$C$63,3),"") -> 15
A51: 41 | B51: 2025991010969 | C51: 2025-07-02 | D51: Persona jurídica | E51: Virtual - Correo electrónico | F51: Petición entre autoridades | G51: Cambio climático | I51: Subdirección de Estudios Ambientales | J51: 2025-07-17 | K51: Correo electrónico | L51: 2025-07-16 | Q51: FUERA DE TIEMPO | R51: 11 | S51: 1 | U51: =IFERROR(VLOOKUP(F51,Hoja1!$A$50:$C$63,2),"") -> 10 | V51: =IFERROR(VLOOKUP(F51,Hoja1!$A$50:$C$63,3),"") -> 10
A52: 42 | B52: 20259910109724 | C52: 2025-07-02 | D52: Persona jurídica | E52: Virtual - Correo electrónico | F52: Certificación de tiempo, clima y eventos hidrológicos | G52: Certificaciones del tiempo y clima | I52: Subdirección de Meteorología | J52: 2025-08-08 | K52: Correo electrónico | L52: 2025-08-14 | Q52: A TIEMPO | R52: 26 | S52: 0 | U52: =IFERROR(VLOOKUP(F52,Hoja1!$A$50:$C$63,2),"") -> 15 | V52: =IFERROR(VLOOKUP(F52,Hoja1!$A$50:$C$63,3),"") -> 15
A53: 43 | B53: 20259910109744 | C53: 2025-07-02 | D53: Persona natural | E53: Virtual - Correo electrónico | F53: Certificación electrónica de tiempos laborados - CETIL | G53: Administrativa | I53: Grupo de Administración y Desarrollo del Talento Humano | J53: 2025-07-16 | K53: Correo electrónico | L53: 2025-07-23 | Q53: A TIEMPO | R53: 10 | S53: 0 | U53: =IFERROR(VLOOKUP(F53,Hoja1!$A$50:$C$63,2),"") -> 15 | V53: =IFERROR(VLOOKUP(F53,Hoja1!$A$50:$C$63,3),"") -> 15
A54: 44 | B54: 20259910109764 | C54: 2025-07-02 | D54: Persona jurídica | E54: Virtual - Correo electrónico | F54: Certificación de contrato | G54: Administrativa | I54: Oficina Asesora Jurídica | J54: 2025-07-10 | K54: Correo electrónico | L54: 2025-07-23 | Q54: A TIEMPO | R54: 6 | S54: 0 | U54: =IFERROR(VLOOKUP(F54,Hoja1!$A$50:$C$63,2),"") -> 15 | V54: =IFERROR(VLOOKUP(F54,Hoja1!$A$50:$C$63,3),"") -> 15
A55: 45 | B55: 20259910109884 | C55: 2025-07-02 | D55: Persona jurídica | E55: Virtual - Correo electrónico | F55: Solicitud de documentos o información | G55: Administrativa | I55: Grupo de Contabilidad | J55: 2025-07-11 | K55: Correo electrónico | L55: 2025-07-16 | Q55: A TIEMPO | R55: 7 | S55: 0 | U55: =IFERROR(VLOOKUP(F55,Hoja1!$A$50:$C$63,2),"") -> 5 | V55: =IFERROR(VLOOKUP(F55,Hoja1!$A$50:$C$63,3),"") -> 5
A56: 46 | B56: 20259910109864 | C56: 2025-07-02 | D56: Persona jurídica | E56: Virtual - Correo electrónico | F56: Solicitud de documentos o información | G56: Registros ambientales | I56: Subdirección de Estudios Ambientales | J56: 2025-07-09 | K56: Correo electrónico | L56: 2025-07-16 | Q56: A TIEMPO | R56: 5 | S56: 0 | U56: =IFERROR(VLOOKUP(F56,Hoja1!$A$50:$C$63,2),"") -> 5 | V56: =IFERROR(VLOOKUP(F56,Hoja1!$A$50:$C$63,3),"") -> 5
A57: 47 | B57: 20259910109874 | C57: 2025-07-02 | D57: Persona natural | E57: Virtual - Correo electrónico | F57: Solicitud de documentos o información | G57: Cambio climático | I57: Subdirección de Estudios Ambientales | J57: 2025-07-17 | K57: Correo electrónico | L57: 2025-07-16 | Q57: FUERA DE TIEMPO | R57: 11 | S57: 1 | U57: =IFERROR(VLOOKUP(F57,Hoja1!$A$50:$C$63,2),"") -> 5 | V57: =IFERROR(VLOOKUP(F57,Hoja1!$A$50:$C$63,3),"") -> 5
A58: 48 | B58: 20259910109814 | C58: 2025-07-02 | D58: Persona jurídica | E58: Virtual - Correo electrónico | F58: Certificación de tiempo, clima y eventos hidrológicos | G58: Certificaciones del tiempo y clima | I58: Subdirección de Meteorología | J58: 2025-08-11 | K58: Correo electrónico | L58: 2025-08-14 | Q58: A TIEMPO | R58: 27 | S58: 0 | U58: =IFERROR(VLOOKUP(F58,Hoja1!$A$50:$C$63,2),"") -> 15 | V58: =IFERROR(VLOOKUP(F58,Hoja1!$A$50:$C$63,3),"") -> 15
A59: 49 | B59: 20259050109824 | C59: 2025-07-02 | D59: Persona natural | E59: Formulario PQRSDF | F59: Solicitud de documentos o información | G59: Estudio nacional del agua | I59: Subdirección de Hidrología | J59: 2025-07-07 | K59: Correo electrónico | L59: 2025-07-16 | Q59: A TIEMPO | R59: 3 | S59: 0 | U59: =IFERROR(VLOOKUP(F59,Hoja1!$A$50:$C$63,2),"") -> 5 | V59: =IFERROR(VLOOKUP(F59,Hoja1!$A$50:$C$63,3),"") -> 5
A60: 50 | B60: 20259910109984 | C60: 2025-07-02 | D60: Persona jurídica | E60: Virtual - Correo electrónico | F60: Certificación de tiempo, clima y eventos hidrológicos | G60: Certificaciones del tiempo y clima | I60: Subdirección de Meteorología | J60: 2025-08-12 | K60: Correo electrónico | L60: 2025-08-14 | Q60: A TIEMPO | R60: 28 | S60: 0 | U60: =IFERROR(VLOOKUP(F60,Hoja1!$A$50:$C$63,2),"") -> 15 | V60: =IFERROR(VLOOKUP(F60,Hoja1!$A$50:$C$63,3),"") -> 15
A61: 51 | B61: 20259050109994 | C61: 2025-07-02 | D61: Persona natural | E61: Formulario PQRSDF | F61: Solicitud de documentos o información | G61: Solicitud de información hidrometeorológica | I61: Subdirección de Meteorología | J61: 2025-07-14 | K61: Correo electrónico | L61: 2025-07-16 | Q61: A TIEMPO | R61: 8 | S61: 0 | U61: =IFERROR(VLOOKUP(F61,Hoja1!$A$50:$C$63,2),"") -> 5 | V61: =IFERROR(VLOOKUP(F61,Hoja1!$A$50:$C$63,3),"") -> 5
A62: 52 | B62: 20259910110014 | C62: 2025-07-02 | D62: Persona jurídica | E62: Virtual - Correo electrónico | F62: Certificación de tiempo, clima y eventos hidrológicos | G62: Certificaciones del tiempo y clima | I62: Subdirección de Meteorología | J62: 2025-08-14 | K62: Correo electrónico | L62: 2025-08-14 | Q62: A TIEMPO | R62: 30 | S62: 0 | U62: =IFERROR(VLOOKUP(F62,Hoja1!$A$50:$C$63,2),"") -> 15 | V62: =IFERROR(VLOOKUP(F62,Hoja1!$A$50:$C$63,3),"") -> 15
A63: 53 | B63: 20259910110134 | C63: 2025-07-02 | D63: Persona natural | E63: Virtual - Correo electrónico | F63: Solicitud de documentos o información | G63: Solicitud de información hidrometeorológica | I63: Grupo de Servicio al Ciudadano | J63: 2025-07-08 | K63: Correo electrónico | L63: 2025-07-16 | Q63: A TIEMPO | R63: 4 | S63: 0 | U63: =IFERROR(VLOOKUP(F63,Hoja1!$A$50:$C$63,2),"") -> 5 | V63: =IFERROR(VLOOKUP(F63,Hoja1!$A$50:$C$63,3),"") -> 5
A64: 54 | B64: 20259910110144 | C64: 2025-07-02 | D64: Persona jurídica | E64: Virtual - Correo electrónico | F64: Certificación de tiempo, clima y eventos hidrológicos | G64: Certificaciones del tiempo y clima | I64: Subdirección de Meteorología | J64: 2025-08-14 | K64: Correo electrónico | L64: 2025-08-14 | Q64: A TIEMPO | R64: 30 | S64: 0 | U64: =IFERROR(VLOOKUP(F64,Hoja1!$A$50:$C$63,2),"") -> 15 | V64: =IFERROR(VLOOKUP(F64,Hoja1!$A$50:$C$63,3),"") -> 15
A65: 55 | B65: 20259910110174 | C65: 2025-07-02 | D65: Persona jurídica | E65: Virtual - Correo electrónico | F65: Certificación de tiempo, clima y eventos hidrológicos | G65: Certificaciones del tiempo y clima | I65: Subdirección de Meteorología | J65: 2025-08-11 | K65: Correo electrónico | L65: 2025-08-14 | Q65: A TIEMPO | R65: 27 | S65: 0 | U65: =IFERROR(VLOOKUP(F65,Hoja1!$A$50:$C$63,2),"") -> 15 | V65: =IFERROR(VLOOKUP(F65,Hoja1!$A$50:$C$63,3),"") -> 15
A66: 56 | B66: 20259910110204 | C66: 2025-07-02 | D66: Persona jurídica | E66: Virtual - Correo electrónico | F66: Solicitud de documentos o información | G66: Registros ambientales | I66: Subdirección de Estudios Ambientales | J66: 2025-07-07 | K66: Correo electrónico | L66: 2025-07-16 | Q66: A TIEMPO | R66: 3 | S66: 0 | U66: =IFERROR(VLOOKUP(F66,Hoja1!$A$50:$C$63,2),"") -> 5 | V66: =IFERROR(VLOOKUP(F66,Hoja1!$A$50:$C$63,3),"") -> 5
A67: 57 | B67: 20259050110214 | C67: 2025-07-02 | D67: Persona natural | E67: Virtual - Correo electrónico | F67: Solicitud de documentos o información | G67: Solicitud de información hidrometeorológica | I67: Subdirección de Meteorología | J67: 2025-07-10 | K67: Correo electrónico | L67: 2025-07-16 | Q67: A TIEMPO | R67: 6 | S67: 0 | U67: =IFERROR(VLOOKUP(F67,Hoja1!$A$50:$C$63,2),"") -> 5 | V67: =IFERROR(VLOOKUP(F67,Hoja1!$A$50:$C$63,3),"") -> 5
A68: 58 | B68: 20259910109754 | C68: 2025-07-02 | D68: Persona natural | E68: Virtual - Correo electrónico | F68: Solicitud de documentos o información | G68: Sistema de información del recurso hídrico | I68: Subdirección de Hidrología | J68: 2025-07-16 | K68: Correo electrónico | L68: 2025-07-16 | Q68: A TIEMPO | R68: 10 | S68: 0 | U68: =IFERROR(VLOOKUP(F68,Hoja1!$A$50:$C$63,2),"") -> 5 | V68: =IFERROR(VLOOKUP(F68,Hoja1!$A$50:$C$63,3),"") -> 5
A69: 59 | B69: 20259050110284 | C69: 2025-07-03 | D69: Persona jurídica | E69: Formulario PQRSDF | F69: Solicitud de documentos o información | G69: Solicitud de información hidrometeorológica | I69: Grupo de Servicio al Ciudadano | J69: 2025-07-11 | K69: Correo electrónico | L69: 2025-07-17 | Q69: A TIEMPO | R69: 6 | S69: 0 | U69: =IFERROR(VLOOKUP(F69,Hoja1!$A$50:$C$63,2),"") -> 5 | V69: =IFERROR(VLOOKUP(F69,Hoja1!$A$50:$C$63,3),"") -> 5
A70: 60 | B70: 20259910110304 | C70: 2025-07-03 | D70: Persona natural | E70: Virtual - Correo electrónico | F70: Solicitud de documentos o información | G70: Solicitud de información hidrometeorológica | I70: Subdirección de Meteorología | J70: 2025-07-15 | K70: Correo electrónico | L70: 2025-07-17 | Q70: A TIEMPO | R70: 8 | S70: 0 | U70: =IFERROR(VLOOKUP(F70,Hoja1!$A$50:$C$63,2),"") -> 5 | V70: =IFERROR(VLOOKUP(F70,Hoja1!$A$50:$C$63,3),"") -> 5
A71: 61 | B71: 20259910110334 | C71: 2025-07-03 | D71: Persona jurídica | E71: Virtual - Correo electrónico | F71: Solicitud de documentos o información | G71: Administrativa | I71: Grupo de Contabilidad | J71: 2025-07-11 | K71: Correo electrónico | L71: 2025-07-17 | Q71: A TIEMPO | R71: 6 | S71: 0 | U71: =IFERROR(VLOOKUP(F71,Hoja1!$A$50:$C$63,2),"") -> 5 | V71: =IFERROR(VLOOKUP(F71,Hoja1!$A$50:$C$63,3),"") -> 5
A72: 62 | B72: 20259910110344 | C72: 2025-07-03 | D72: Persona jurídica | E72: Virtual - Correo electrónico | F72: Solicitud de documentos o información | G72: Cambio climático | I72: Subdirección de Estudios Ambientales | J72: 2025-07-17 | K72: Correo electrónico | L72: 2025-07-17 | Q72: A TIEMPO | R72: 10 | S72: 0 | U72: =IFERROR(VLOOKUP(F72,Hoja1!$A$50:$C$63,2),"") -> 5 | V72: =IFERROR(VLOOKUP(F72,Hoja1!$A$50:$C$63,3),"") -> 5
A73: 63 | B73: 20259910110374 | C73: 2025-07-03 | D73: Persona jurídica | E73: Virtual - Correo electrónico | F73: Solicitud de documentos o información | G73: Acreditación de laboratorios | I73: Subdirección de Estudios Ambientales | J73: 2025-07-16 | K73: Correo electrónico | L73: 2025-07-17 | Q73: A TIEMPO | R73: 9 | S73: 0 | U73: =IFERROR(VLOOKUP(F73,Hoja1!$A$50:$C$63,2),"") -> 5 | V73: =IFERROR(VLOOKUP(F73,Hoja1!$A$50:$C$63,3),"") -> 5
A74: 64 | B74: 20259910110354 | C74: 2025-07-03 | D74: Persona natural | E74: Virtual - Correo electrónico | F74: Certificación electrónica de tiempos laborados - CETIL | G74: Administrativa | I74: Grupo de Administración y Desarrollo del Talento Humano | J74: 2025-07-11 | K74: Correo electrónico | L74: 2025-07-24 | Q74: A TIEMPO | R74: 6 | S74: 0 | U74: =IFERROR(VLOOKUP(F74,Hoja1!$A$50:$C$63,2),"") -> 15 | V74: =IFERROR(VLOOKUP(F74,Hoja1!$A$50:$C$63,3),"") -> 15
A75: 65 | B75: 20259910110364 | C75: 2025-07-03 | D75: Persona natural | E75: Virtual - Correo electrónico | F75: Solicitud de documentos o información | G75: Bosques | I75: Subdirección de Ecosistemas e Información Ambiental | J75: 2025-07-08 | K75: Correo electrónico | L75: 2025-07-17 | Q75: A TIEMPO | R75: 3 | S75: 0 | U75: =IFERROR(VLOOKUP(F75,Hoja1!$A$50:$C$63,2),"") -> 5 | V75: =IFERROR(VLOOKUP(F75,Hoja1!$A$50:$C$63,3),"") -> 5
A76: 66 | B76: 20259910110384 | C76: 2025-07-03 | D76: Persona jurídica | E76: Virtual - Correo electrónico | F76: Solicitud de documentos o información | G76: Registros ambientales | I76: Subdirección de Estudios Ambientales | J76: 2025-07-15 | K76: Correo electrónico | L76: 2025-07-17 | Q76: A TIEMPO | R76: 8 | S76: 0 | U76: =IFERROR(VLOOKUP(F76,Hoja1!$A$50:$C$63,2),"") -> 5 | V76: =IFERROR(VLOOKUP(F76,Hoja1!$A$50:$C$63,3),"") -> 5
A77: 67 | B77: 20259910110394 | C77: 2025-07-03 | D77: Persona natural | E77: Virtual - Correo electrónico | F77: Certificación de contrato | G77: Administrativa | I77: Oficina Asesora Jurídica | J77: 2025-07-10 | K77: Correo electrónico | L77: 2025-07-24 | Q77: A TIEMPO | R77: 5 | S77: 0 | U77: =IFERROR(VLOOKUP(F77,Hoja1!$A$50:$C$63,2),"") -> 15 | V77: =IFERROR(VLOOKUP(F77,Hoja1!$A$50:$C$63,3),"") -> 15
A78: 68 | B78: 20259050110404 | C78: 2025-07-03 | D78: Persona jurídica | E78: Formulario PQRSDF | F78: Solicitud de documentos o información | G78: Solicitud de información hidrometeorológica | I78: Grupo de Servicio al Ciudadano | J78: 2025-07-08 | K78: Correo electrónico | L78: 2025-07-17 | Q78: A TIEMPO | R78: 3 | S78: 0 | U78: =IFERROR(VLOOKUP(F78,Hoja1!$A$50:$C$63,2),"") -> 5 | V78: =IFERROR(VLOOKUP(F78,Hoja1!$A$50:$C$63,3),"") -> 5
A79: 69 | B79: 20259910110424 | C79: 2025-07-03 | D79: Persona natural | E79: Virtual - Correo electrónico | F79: Solicitud de documentos o información | G79: Solicitud de información hidrometeorológica | I79: Grupo de Servicio al Ciudadano | J79: 2025-07-08 | K79: Correo electrónico | L79: 2025-07-17 | Q79: A TIEMPO | R79: 3 | S79: 0 | U79: =IFERROR(VLOOKUP(F79,Hoja1!$A$50:$C$63,2),"") -> 5 | V79: =IFERROR(VLOOKUP(F79,Hoja1!$A$50:$C$63,3),"") -> 5
A80: 70 | B80: 20259910110434 | C80: 2025-07-03 | D80: Persona natural | E80: Virtual - Correo electrónico | F80: Solicitud de documentos o información | G80: Solicitud de información hidrometeorológica | I80: Grupo de Servicio al Ciudadano | J80: 2025-07-08 | K80: Correo electrónico | L80: 2025-07-17 | Q80: A TIEMPO | R80: 3 | S80: 0 | U80: =IFERROR(VLOOKUP(F80,Hoja1!$A$50:$C$63,2),"") -> 5 | V80: =IFERROR(VLOOKUP(F80,Hoja1!$A$50:$C$63,3),"") -> 5
A81: =IF(B81<>"",A80+1,"") -> 71 | B81: 20259910110464 | C81: 2025-07-03 | D81: Persona jurídica | E81: Virtual - Correo electrónico | F81: Solicitud de documentos o información | G81: Registros ambientales | I81: Subdirección de Estudios Ambientales | J81: 2025-07-07 | K81: Correo electrónico | L81: 2025-07-17 | Q81: A TIEMPO | R81: 2 | S81: 0 | U81: =IFERROR(VLOOKUP(F81,Hoja1!$A$50:$C$63,2),"") -> 5 | V81: =IFERROR(VLOOKUP(F81,Hoja1!$A$50:$C$63,3),"") -> 5
A82: 72 | B82: 20259910110484 | C82: 2025-07-03 | D82: Persona jurídica | E82: Virtual - Correo electrónico | F82: Petición entre autoridades | G82: Administrativa | I82: Subdirección de Hidrología | J82: 2025-07-07 | K82: Correo electrónico | L82: 2025-07-17 | Q82: A TIEMPO | R82: 2 | S82: 0 | U82: =IFERROR(VLOOKUP(F82,Hoja1!$A$50:$C$63,2),"") -> 10 | V82: =IFERROR(VLOOKUP(F82,Hoja1!$A$50:$C$63,3),"") -> 10
A83: 73 | B83: 20259910110534 | C83: 2025-07-03 | D83: Persona natural | E83: Virtual - Correo electrónico | F83: Certificación laboral o pasantía | G83: Administrativa | I83: Grupo de Administración y Desarrollo del Talento Humano | J83: 2025-07-07 | K83: Correo electrónico | L83: 2025-07-17 | Q83: A TIEMPO | R83: 2 | S83: 0 | U83: =IFERROR(VLOOKUP(F83,Hoja1!$A$50:$C$63,2),"") -> 15 | V83: =IFERROR(VLOOKUP(F83,Hoja1!$A$50:$C$63,3),"") -> 15
A84: 74 | B84: 20259910110564 | C84: 2025-07-03 | D84: Persona natural | E84: Virtual - Correo electrónico | F84: Solicitud de documentos o información | G84: Registros ambientales | I84: Subdirección de Estudios Ambientales | J84: 2025-07-15 | K84: No aplica | L84: 2025-07-17 | Q84: A TIEMPO | R84: 8 | S84: 0 | U84: =IFERROR(VLOOKUP(F84,Hoja1!$A$50:$C$63,2),"") -> 5 | V84: =IFERROR(VLOOKUP(F84,Hoja1!$A$50:$C$63,3),"") -> 5
A85: 75 | B85: 20259910110604 | C85: 2025-07-03 | D85: Persona jurídica | E85: Virtual - Correo electrónico | F85: Petición entre autoridades | G85: Registros ambientales | I85: Subdirección de Estudios Ambientales | J85: 2025-07-15 | K85: Correo electrónico | L85: 2025-07-17 | Q85: A TIEMPO | R85: 8 | S85: 0 | U85: =IFERROR(VLOOKUP(F85,Hoja1!$A$50:$C$63,2),"") -> 10 | V85: =IFERROR(VLOOKUP(F85,Hoja1!$A$50:$C$63,3),"") -> 10
A86: 76 | B86: 20259910110554 | C86: 2025-07-03 | D86: Persona natural | E86: Virtual - Correo electrónico | F86: Solicitud de documentos o información | G86: Solicitud de información hidrometeorológica | I86: Grupo de Servicio al Ciudadano | J86: 2025-07-08 | K86: Correo electrónico | L86: 2025-07-17 | Q86: A TIEMPO | R86: 3 | S86: 0 | U86: =IFERROR(VLOOKUP(F86,Hoja1!$A$50:$C$63,2),"") -> 5 | V86: =IFERROR(VLOOKUP(F86,Hoja1!$A$50:$C$63,3),"") -> 5
A87: 77 | B87: 20259910110714 | C87: 2025-07-03 | D87: Persona natural | E87: Virtual - Correo electrónico | F87: Certificación laboral o pasantía | G87: Administrativa | I87: Grupo de Administración y Desarrollo del Talento Humano | J87: 2025-07-07 | K87: Correo electrónico | L87: 2025-07-17 | Q87: A TIEMPO | R87: 2 | S87: 0 | U87: =IFERROR(VLOOKUP(F87,Hoja1!$A$50:$C$63,2),"") -> 15 | V87: =IFERROR(VLOOKUP(F87,Hoja1!$A$50:$C$63,3),"") -> 15
A88: 78 | B88: 20259910110704 | C88: 2025-07-03 | D88: Persona jurídica | E88: Virtual - Correo electrónico | F88: Solicitud de documentos o información | G88: Bosques | I88: Subdirección de Ecosistemas e Información Ambiental | J88: 2025-07-10 | K88: Correo electrónico | L88: 2025-07-17 | Q88: A TIEMPO | R88: 5 | S88: 0 | U88: =IFERROR(VLOOKUP(F88,Hoja1!$A$50:$C$63,2),"") -> 5 | V88: =IFERROR(VLOOKUP(F88,Hoja1!$A$50:$C$63,3),"") -> 5
A89: 79 | B89: 20259910110764 | C89: 2025-07-03 | D89: Persona jurídica | E89: Virtual - Correo electrónico | F89: Solicitud de documentos o información | G89: Registros ambientales | I89: Subdirección de Estudios Ambientales | J89: 2025-07-07 | K89: Correo electrónico | L89: 2025-07-17 | Q89: A TIEMPO | R89: 2 | S89: 0 | U89: =IFERROR(VLOOKUP(F89,Hoja1!$A$50:$C$63,2),"") -> 5 | V89: =IFERROR(VLOOKUP(F89,Hoja1!$A$50:$C$63,3),"") -> 5
A90: 80 | B90: 20259050110814 | C90: 2025-07-03 | D90: Persona natural | E90: Formulario PQRSDF | F90: Solicitud de documentos o información | G90: Solicitud de información hidrometeorológica | I90: Grupo de Servicio al Ciudadano | J90: 2025-07-10 | K90: Correo electrónico | L90: 2025-07-17 | Q90: A TIEMPO | R90: 5 | S90: 0 | U90: =IFERROR(VLOOKUP(F90,Hoja1!$A$50:$C$63,2),"") -> 5 | V90: =IFERROR(VLOOKUP(F90,Hoja1!$A$50:$C$63,3),"") -> 5
A91: 81 | B91: 20259910110874 | C91: 2025-07-04 | D91: Persona natural | E91: Virtual - Correo electrónico | F91: Certificación de ingresos y retenciones | G91: Administrativa | I91: Grupo de Servicio al Ciudadano | J91: 2025-07-08 | K91: Correo electrónico | L91: 2025-07-18 | Q91: A TIEMPO | R91: 2 | S91: 0 | U91: =IFERROR(VLOOKUP(F91,Hoja1!$A$50:$C$63,2),"") -> 15 | V91: =IFERROR(VLOOKUP(F91,Hoja1!$A$50:$C$63,3),"") -> 15
A92: 82 | B92: 20259910110904 | C92: 2025-07-04 | D92: Persona jurídica | E92: Virtual - Correo electrónico | F92: Solicitud de documentos o información | G92: Acreditación de laboratorios | I92: Subdirección de Estudios Ambientales | J92: 2025-07-17 | K92: Correo electrónico | L92: 2025-07-18 | Q92: A TIEMPO | R92: 9 | S92: 0 | U92: =IFERROR(VLOOKUP(F92,Hoja1!$A$50:$C$63,2),"") -> 5 | V92: =IFERROR(VLOOKUP(F92,Hoja1!$A$50:$C$63,3),"") -> 5
A93: 83 | B93: 20259910110934 | C93: 2025-07-04 | D93: Persona jurídica | E93: Virtual - Correo electrónico | F93: Solicitud de documentos o información | G93: Acreditación de laboratorios | I93: Subdirección de Estudios Ambientales | J93: 2025-07-17 | K93: Correo electrónico | L93: 2025-07-18 | Q93: A TIEMPO | R93: 9 | S93: 0 | U93: =IFERROR(VLOOKUP(F93,Hoja1!$A$50:$C$63,2),"") -> 5 | V93: =IFERROR(VLOOKUP(F93,Hoja1!$A$50:$C$63,3),"") -> 5
A94: 84 | B94: 20259910110954 | C94: 2025-07-04 | D94: Persona jurídica | E94: Virtual - Correo electrónico | F94: Solicitud de documentos o información | G94: Registros ambientales | I94: Subdirección de Estudios Ambientales | J94: 2025-07-07 | K94: Correo electrónico | L94: 2025-07-18 | Q94: A TIEMPO | R94: 1 | S94: 0 | U94: =IFERROR(VLOOKUP(F94,Hoja1!$A$50:$C$63,2),"") -> 5 | V94: =IFERROR(VLOOKUP(F94,Hoja1!$A$50:$C$63,3),"") -> 5
A95: 85 | B95: 20259910110964 | C95: 2025-07-04 | D95: Persona jurídica | E95: Virtual - Correo electrónico | F95: Solicitud de documentos o información | G95: Administrativa | I95: Grupo de Contabilidad | J95: 2025-07-11 | K95: Correo electrónico | L95: 2025-07-18 | Q95: A TIEMPO | R95: 5 | S95: 0 | U95: =IFERROR(VLOOKUP(F95,Hoja1!$A$50:$C$63,2),"") -> 5 | V95: =IFERROR(VLOOKUP(F95,Hoja1!$A$50:$C$63,3),"") -> 5
A96: 86 | B96: 20259910110974 | C96: 2025-07-04 | D96: Persona jurídica | E96: Virtual - Correo electrónico | F96: Solicitud de documentos o información | G96: Registros ambientales | I96: Subdirección de Estudios Ambientales | J96: 2025-07-15 | K96: Correo electrónico | L96: 2025-07-18 | Q96: A TIEMPO | R96: 7 | S96: 0 | U96: =IFERROR(VLOOKUP(F96,Hoja1!$A$50:$C$63,2),"") -> 5 | V96: =IFERROR(VLOOKUP(F96,Hoja1!$A$50:$C$63,3),"") -> 5
A97: 87 | B97: 20259050111044 | C97: 2025-07-04 | D97: Persona natural | E97: Formulario PQRSDF | F97: Solicitud de documentos o información | G97: Administrativa | I97: Grupo de Administración y Desarrollo del Talento Humano | J97: 2025-07-15 | K97: Correo electrónico | L97: 2025-07-18 | Q97: A TIEMPO | R97: 7 | S97: 0 | U97: =IFERROR(VLOOKUP(F97,Hoja1!$A$50:$C$63,2),"") -> 5 | V97: =IFERROR(VLOOKUP(F97,Hoja1!$A$50:$C$63,3),"") -> 5
A98: 88 | B98: 20259910111084 | C98: 2025-07-04 | D98: Persona jurídica | E98: Virtual - Correo electrónico | F98: Consulta (Información técnica) | G98: Bosques | I98: Subdirección de Ecosistemas e Información Ambiental | J98: 2025-08-19 | K98: Correo electrónico | L98: 2025-08-19 | Q98: A TIEMPO | R98: 30 | S98: 0 | U98: =IFERROR(VLOOKUP(F98,Hoja1!$A$50:$C$63,2),"") -> 30 | V98: =IFERROR(VLOOKUP(F98,Hoja1!$A$50:$C$63,3),"") -> 30
A99: 89 | B99: 20259910111104 | C99: 2025-07-04 | D99: Persona natural | E99: Virtual - Correo electrónico | F99: Certificación laboral o pasantía | G99: Administrativa | I99: Grupo de Administración y Desarrollo del Talento Humano | J99: 2025-07-07 | K99: Correo electrónico | L99: 2025-07-18 | Q99: A TIEMPO | R99: 1 | S99: 0 | U99: =IFERROR(VLOOKUP(F99,Hoja1!$A$50:$C$63,2),"") -> 15 | V99: =IFERROR(VLOOKUP(F99,Hoja1!$A$50:$C$63,3),"") -> 15
A100: 90 | B100: 20259910111124 | C100: 2025-07-04 | D100: Persona natural | E100: Virtual - Correo electrónico | F100: Solicitud de documentos o información | G100: Acreditación de laboratorios | I100: Subdirección de Estudios Ambientales | J100: 2025-07-17 | K100: Correo electrónico | L100: 2025-07-18 | Q100: A TIEMPO | R100: 9 | S100: 0 | U100: =IFERROR(VLOOKUP(F100,Hoja1!$A$50:$C$63,2),"") -> 5 | V100: =IFERROR(VLOOKUP(F100,Hoja1!$A$50:$C$63,3),"") -> 5
A101: 91 | B101: 20259910111134 | C101: 2025-07-04 | D101: Persona natural | E101: Virtual - Correo electrónico | F101: Solicitud de documentos o información | G101: Solicitud de información hidrometeorológica | I101: Subdirección de Meteorología | J101: 2025-07-15 | K101: Correo electrónico | L101: 2025-07-18 | Q101: A TIEMPO | R101: 7 | S101: 0 | U101: =IFERROR(VLOOKUP(F101,Hoja1!$A$50:$C$63,2),"") -> 5 | V101: =IFERROR(VLOOKUP(F101,Hoja1!$A$50:$C$63,3),"") -> 5
A102: 92 | B102: 20259910111194 | C102: 2025-07-04 | D102: Persona natural | E102: Virtual - Correo electrónico | F102: Solicitud de documentos o información | G102: Solicitud de información hidrometeorológica | I102: Subdirección de Meteorología | J102: 2025-07-10 | K102: Correo electrónico | L102: 2025-07-18 | Q102: A TIEMPO | R102: 4 | S102: 0 | U102: =IFERROR(VLOOKUP(F102,Hoja1!$A$50:$C$63,2),"") -> 5 | V102: =IFERROR(VLOOKUP(F102,Hoja1!$A$50:$C$63,3),"") -> 5
A103: 93 | B103: 20259910111164 | C103: 2025-07-04 | D103: Persona jurídica | E103: Virtual - Correo electrónico | F103: Solicitud de documentos o información | G103: Solicitud de información hidrometeorológica | I103: Grupo de Servicio al Ciudadano | J103: 2025-07-08 | K103: Correo electrónico | L103: 2025-07-18 | Q103: A TIEMPO | R103: 2 | S103: 0 | U103: =IFERROR(VLOOKUP(F103,Hoja1!$A$50:$C$63,2),"") -> 5 | V103: =IFERROR(VLOOKUP(F103,Hoja1!$A$50:$C$63,3),"") -> 5
A104: 94 | B104: 20259050111264 | C104: 2025-07-04 | D104: Persona natural | E104: Formulario PQRSDF | F104: Solicitud de documentos o información | G104: Solicitud de información hidrometeorológica | I104: Grupo de Servicio al Ciudadano | J104: 2025-07-09 | K104: Correo electrónico | L104: 2025-07-18 | Q104: A TIEMPO | R104: 3 | S104: 0 | U104: =IFERROR(VLOOKUP(F104,Hoja1!$A$50:$C$63,2),"") -> 5 | V104: =IFERROR(VLOOKUP(F104,Hoja1!$A$50:$C$63,3),"") -> 5
A105: 95 | B105: 20259910111274 | C105: 2025-07-04 | D105: Persona jurídica | E105: Virtual - Correo electrónico | F105: Solicitud de documentos o información | G105: Registros ambientales | I105: Subdirección de Estudios Ambientales | J105: 2025-07-07 | K105: Correo electrónico | L105: 2025-07-18 | Q105: A TIEMPO | R105: 1 | S105: 0 | U105: =IFERROR(VLOOKUP(F105,Hoja1!$A$50:$C$63,2),"") -> 5 | V105: =IFERROR(VLOOKUP(F105,Hoja1!$A$50:$C$63,3),"") -> 5
A106: 96 | B106: 20259050111314 | C106: 2025-07-04 | D106: Persona natural | E106: Formulario PQRSDF | F106: Solicitud de documentos o información | G106: Solicitud de información hidrometeorológica | I106: Subdirección de Meteorología | J106: 2025-07-15 | K106: Correo electrónico | L106: 2025-07-18 | Q106: A TIEMPO | R106: 7 | S106: 0 | U106: =IFERROR(VLOOKUP(F106,Hoja1!$A$50:$C$63,2),"") -> 5 | V106: =IFERROR(VLOOKUP(F106,Hoja1!$A$50:$C$63,3),"") -> 5
A107: 97 | B107: 20259050111434 | C107: 2025-07-06 | D107: Anónimo | E107: Formulario PQRSDF | F107: Petición de interés general o particular | G107: Bosques | I107: Subdirección de Ecosistemas e Información Ambiental | J107: 2025-08-19 | K107: Correo electrónico | M107: Si | N107: 2025-08-19 | O107: 2025-07-25 | P107: A TIEMPO | Q107: A TIEMPO | R107: 29 | S107: 0 | U107: =IFERROR(VLOOKUP(F107,Hoja1!$A$50:$C$63,2),"") -> 15 | V107: =IFERROR(VLOOKUP(F107,Hoja1!$A$50:$C$63,3),"") -> 15
A108: 98 | B108: 20259050111424 | C108: 2025-07-05 | D108: Persona natural | E108: Formulario PQRSDF | F108: Solicitud de documentos o información | G108: Solicitud de información hidrometeorológica | I108: Subdirección de Meteorología | J108: 2025-07-10 | K108: Correo electrónico | L108: 2025-07-18 | Q108: A TIEMPO | R108: 3 | S108: 0 | U108: =IFERROR(VLOOKUP(F108,Hoja1!$A$50:$C$63,2),"") -> 5 | V108: =IFERROR(VLOOKUP(F108,Hoja1!$A$50:$C$63,3),"") -> 5
A109: 99 | B109: 20259050111414 | C109: 2025-07-04 | D109: Persona jurídica | E109: Formulario PQRSDF | F109: Certificación de tiempo, clima y eventos hidrológicos | G109: Certificaciones del tiempo y clima | I109: Grupo de Servicio al Ciudadano | J109: 2025-07-18 | K109: Correo electrónico | L109: 2025-08-19 | Q109: A TIEMPO | R109: 10 | S109: 0 | U109: =IFERROR(VLOOKUP(F109,Hoja1!$A$50:$C$63,2),"") -> 15 | V109: =IFERROR(VLOOKUP(F109,Hoja1!$A$50:$C$63,3),"") -> 15
A110: 100 | B110: 20259050111374 | C110: 2025-07-04 | D110: Persona natural | E110: Formulario PQRSDF | F110: Solicitud de documentos o información | G110: Bosques | I110: Subdirección de Ecosistemas e Información Ambiental | J110: 2025-07-18 | K110: Correo electrónico | L110: 2025-07-18 | Q110: A TIEMPO | R110: 10 | S110: 0 | U110: =IFERROR(VLOOKUP(F110,Hoja1!$A$50:$C$63,2),"") -> 5 | V110: =IFERROR(VLOOKUP(F110,Hoja1!$A$50:$C$63,3),"") -> 5
A111: 101 | B111: 20259910111344 | C111: 2025-07-04 | D111: Persona jurídica | E111: Virtual - Correo electrónico | F111: Solicitud de documentos o información | G111: Sistema de información ambiental | I111: Subdirección de Estudios Ambientales | J111: 2025-07-17 | K111: Correo electrónico | L111: 2025-07-18 | Q111: A TIEMPO | R111: 9 | S111: 0 | U111: =IFERROR(VLOOKUP(F111,Hoja1!$A$50:$C$63,2),"") -> 5 | V111: =IFERROR(VLOOKUP(F111,Hoja1!$A$50:$C$63,3),"") -> 5
A112: 102 | B112: 20259050111444 | C112: 2025-07-07 | D112: Persona natural | E112: Formulario PQRSDF | F112: Certificación laboral o pasantía | G112: Administrativa | I112: Grupo de Administración y Desarrollo del Talento Humano | J112: 2025-07-07 | K112: Correo electrónico | L112: 2025-07-21 | Q112: A TIEMPO | R112: 0 | S112: 0 | U112: =IFERROR(VLOOKUP(F112,Hoja1!$A$50:$C$63,2),"") -> 15 | V112: =IFERROR(VLOOKUP(F112,Hoja1!$A$50:$C$63,3),"") -> 15
A113: 103 | B113: 20259910111484 | C113: 2025-07-07 | D113: Persona natural | E113: Virtual - Correo electrónico | F113: Certificación de ingresos y retenciones | G113: Administrativa | I113: Grupo de Servicio al Ciudadano | J113: 2025-07-08 | K113: Correo electrónico | L113: 2025-07-21 | Q113: A TIEMPO | R113: 1 | S113: 0 | U113: =IFERROR(VLOOKUP(F113,Hoja1!$A$50:$C$63,2),"") -> 15 | V113: =IFERROR(VLOOKUP(F113,Hoja1!$A$50:$C$63,3),"") -> 15
A114: 104 | B114: 20259910111504 | C114: 2025-07-07 | D114: Persona jurídica | E114: Virtual - Correo electrónico | F114: Solicitud judicial | G114: Certificaciones del tiempo y clima | I114: Subdirección de Meteorología | J114: 2025-07-10 | K114: Correo electrónico | L114: 2025-07-14 | Q114: A TIEMPO | R114: 3 | S114: 0 | U114: =IFERROR(VLOOKUP(F114,Hoja1!$A$50:$C$63,2),"") -> 5 | V114: =IFERROR(VLOOKUP(F114,Hoja1!$A$50:$C$63,3),"") -> 5
A115: 105 | B115: 20259910111494 | C115: 2025-07-07 | D115: Persona jurídica | E115: Virtual - Correo electrónico | F115: Petición de interés general o particular | G115: Certificaciones del tiempo y clima | I115: Subdirección de Meteorología | J115: 2025-07-21 | K115: Correo electrónico | L115: 2025-07-28 | Q115: A TIEMPO | R115: 10 | S115: 0 | U115: =IFERROR(VLOOKUP(F115,Hoja1!$A$50:$C$63,2),"") -> 15 | V115: =IFERROR(VLOOKUP(F115,Hoja1!$A$50:$C$63,3),"") -> 15
A116: 106 | B116: 20259910111594 | C116: 2025-07-07 | D116: Persona jurídica | E116: Virtual - Correo electrónico | F116: Solicitud de documentos o información | G116: Registros ambientales | I116: Subdirección de Estudios Ambientales | J116: 2025-07-10 | K116: Correo electrónico | L116: 2025-07-21 | Q116: A TIEMPO | R116: 3 | S116: 0 | U116: =IFERROR(VLOOKUP(F116,Hoja1!$A$50:$C$63,2),"") -> 5 | V116: =IFERROR(VLOOKUP(F116,Hoja1!$A$50:$C$63,3),"") -> 5
A117: 107 | B117: 20259910111634 | C117: 2025-07-07 | D117: Persona jurídica | E117: Virtual - Correo electrónico | F117: Petición entre autoridades | G117: Administrativa | I117: Oficina Asesora de Planeación | J117: 2025-07-17 | K117: Correo electrónico | L117: 2025-07-21 | Q117: A TIEMPO | R117: 8 | S117: 0 | U117: =IFERROR(VLOOKUP(F117,Hoja1!$A$50:$C$63,2),"") -> 10 | V117: =IFERROR(VLOOKUP(F117,Hoja1!$A$50:$C$63,3),"") -> 10
A118: 108 | B118: 20259910111644 | C118: 2025-07-07 | D118: Persona natural | E118: Virtual - Correo electrónico | F118: Solicitud de documentos o información | G118: Solicitud de información hidrometeorológica | I118: Subdirección de Meteorología | J118: 2025-07-10 | K118: Correo electrónico | L118: 2025-07-21 | Q118: A TIEMPO | R118: 3 | S118: 0 | U118: =IFERROR(VLOOKUP(F118,Hoja1!$A$50:$C$63,2),"") -> 5 | V118: =IFERROR(VLOOKUP(F118,Hoja1!$A$50:$C$63,3),"") -> 5
A119: 109 | B119: 20259910111684 | C119: 2025-07-07 | D119: Persona natural | E119: Virtual - Correo electrónico | F119: Certificación de ingresos y retenciones | G119: Administrativa | I119: Grupo de Servicio al Ciudadano | J119: 2025-07-08 | K119: No aplica | L119: 2025-07-21 | Q119: A TIEMPO | R119: 1 | S119: 0 | U119: =IFERROR(VLOOKUP(F119,Hoja1!$A$50:$C$63,2),"") -> 15 | V119: =IFERROR(VLOOKUP(F119,Hoja1!$A$50:$C$63,3),"") -> 15
A120: 110 | B120: 20259910111694 | C120: 2025-07-07 | D120: Persona jurídica | E120: Virtual - Correo electrónico | F120: Solicitud de documentos o información | G120: Registros ambientales | I120: Grupo de Servicio al Ciudadano | J120: 2025-07-10 | K120: Correo electrónico | L120: 2025-07-21 | Q120: A TIEMPO | R120: 3 | S120: 0 | U120: =IFERROR(VLOOKUP(F120,Hoja1!$A$50:$C$63,2),"") -> 5 | V120: =IFERROR(VLOOKUP(F120,Hoja1!$A$50:$C$63,3),"") -> 5
A121: 111 | B121: 20259910111714 | C121: 2025-07-07 | D121: Persona jurídica | E121: Virtual - Correo electrónico | F121: Petición entre autoridades | G121: Registros ambientales | I121: Subdirección de Estudios Ambientales | J121: 2025-07-10 | K121: Correo electrónico | L121: 2025-07-21 | Q121: A TIEMPO | R121: 3 | S121: 0 | U121: =IFERROR(VLOOKUP(F121,Hoja1!$A$50:$C$63,2),"") -> 10 | V121: =IFERROR(VLOOKUP(F121,Hoja1!$A$50:$C$63,3),"") -> 10
A122: 112 | B122: 20259910111744 | C122: 2025-07-07 | D122: Persona natural | E122: Virtual - Correo electrónico | F122: Certificación de contrato | G122: Administrativa | I122: Oficina Asesora Jurídica | J122: 2025-07-16 | K122: Correo electrónico | L122: 2025-07-28 | Q122: A TIEMPO | R122: 7 | S122: 0 | U122: =IFERROR(VLOOKUP(F122,Hoja1!$A$50:$C$63,2),"") -> 15 | V122: =IFERROR(VLOOKUP(F122,Hoja1!$A$50:$C$63,3),"") -> 15
A123: 113 | B123: 20259910111754 | C123: 2025-07-07 | D123: Persona jurídica | E123: Virtual - Correo electrónico | F123: Solicitud de documentos o información | G123: Registros ambientales | I123: Subdirección de Estudios Ambientales | J123: 2025-07-17 | K123: Correo electrónico | L123: 2025-07-21 | Q123: A TIEMPO | R123: 8 | S123: 0 | U123: =IFERROR(VLOOKUP(F123,Hoja1!$A$50:$C$63,2),"") -> 5 | V123: =IFERROR(VLOOKUP(F123,Hoja1!$A$50:$C$63,3),"") -> 5
A124: 114 | B124: 20259910111904 | C124: 2025-07-07 | D124: Persona jurídica | E124: Virtual - Correo electrónico | F124: Certificación de tiempo, clima y eventos hidrológicos | G124: Certificaciones del tiempo y clima | I124: Subdirección de Meteorología | J124: 2025-08-11 | K124: Correo electrónico | L124: 2025-08-20 | Q124: A TIEMPO | R124: 24 | S124: 0 | U124: =IFERROR(VLOOKUP(F124,Hoja1!$A$50:$C$63,2),"") -> 15 | V124: =IFERROR(VLOOKUP(F124,Hoja1!$A$50:$C$63,3),"") -> 15
A125: 115 | B125: 20259910111774 | C125: 2025-07-07 | D125: Persona natural | E125: Virtual - Correo electrónico | F125: Certificación laboral o pasantía | G125: Administrativa | I125: Grupo de Administración y Desarrollo del Talento Humano | J125: 2025-07-16 | K125: Correo electrónico | L125: 2025-07-21 | Q125: A TIEMPO | R125: 7 | S125: 0 | U125: =IFERROR(VLOOKUP(F125,Hoja1!$A$50:$C$63,2),"") -> 15 | V125: =IFERROR(VLOOKUP(F125,Hoja1!$A$50:$C$63,3),"") -> 15
A126: 116 | B126: 20259050111784 | C126: 2025-07-07 | D126: Persona natural | E126: Formulario PQRSDF | F126: Solicitud de documentos o información | G126: Bosques | I126: Grupo de Servicio al Ciudadano | J126: 2025-07-14 | K126: Correo electrónico | L126: 2025-07-21 | Q126: A TIEMPO | R126: 5 | S126: 0 | U126: =IFERROR(VLOOKUP(F126,Hoja1!$A$50:$C$63,2),"") -> 5 | V126: =IFERROR(VLOOKUP(F126,Hoja1!$A$50:$C$63,3),"") -> 5
A127: 117 | B127: 20259910111824 | C127: 2025-07-07 | D127: Persona jurídica | E127: Virtual - Correo electrónico | F127: Petición entre entidades | G127: Solicitud de información hidrometeorológica | I127: Grupo de Servicio al Ciudadano | J127: 2025-07-10 | K127: Correo electrónico | L127: 2025-07-21 | Q127: A TIEMPO | R127: 3 | S127: 0 | U127: =IFERROR(VLOOKUP(F127,Hoja1!$A$50:$C$63,2),"") -> 10 | V127: =IFERROR(VLOOKUP(F127,Hoja1!$A$50:$C$63,3),"") -> 10
A128: 118 | B128: 20259910111834 | C128: 2025-07-07 | D128: Persona jurídica | E128: Virtual - Correo electrónico | F128: Petición entre entidades | G128: Sistema de información del recurso hídrico | I128: Subdirección de Ecosistemas e Información Ambiental | J128: 2025-07-08 | K128: Correo electrónico | L128: 2025-07-21 | Q128: A TIEMPO | R128: 1 | S128: 0 | U128: =IFERROR(VLOOKUP(F128,Hoja1!$A$50:$C$63,2),"") -> 10 | V128: =IFERROR(VLOOKUP(F128,Hoja1!$A$50:$C$63,3),"") -> 10
A129: 119 | B129: 20259910111854 | C129: 2025-07-07 | D129: Persona jurídica | E129: Virtual - Correo electrónico | F129: Petición entre entidades | G129: Solicitud de información hidrometeorológica | I129: Subdirección de Hidrología | J129: 2025-07-14 | K129: Correo electrónico | L129: 2025-07-21 | Q129: A TIEMPO | R129: 5 | S129: 0 | U129: =IFERROR(VLOOKUP(F129,Hoja1!$A$50:$C$63,2),"") -> 10 | V129: =IFERROR(VLOOKUP(F129,Hoja1!$A$50:$C$63,3),"") -> 10
A130: 120 | B130: 20259910111884 | C130: 2025-07-07 | D130: Persona natural | E130: Virtual - Correo electrónico | F130: Solicitud de documentos o información | G130: Sistema de información del recurso hídrico | I130: Grupo de Gestión Documental y Centro de Documentación | J130: 2025-07-09 | K130: Correo electrónico | L130: 2025-07-21 | Q130: A TIEMPO | R130: 2 | S130: 0 | U130: =IFERROR(VLOOKUP(F130,Hoja1!$A$50:$C$63,2),"") -> 5 | V130: =IFERROR(VLOOKUP(F130,Hoja1!$A$50:$C$63,3),"") -> 5
A131: 121 | B131: 20259910111894 | C131: 2025-07-07 | D131: Persona jurídica | E131: Virtual - Correo electrónico | F131: Certificación de tiempo, clima y eventos hidrológicos | G131: Certificaciones del tiempo y clima | I131: Subdirección de Meteorología | J131: 2025-08-19 | K131: Correo electrónico | L131: 2025-08-20 | Q131: A TIEMPO | R131: 29 | S131: 0 | U131: =IFERROR(VLOOKUP(F131,Hoja1!$A$50:$C$63,2),"") -> 15 | V131: =IFERROR(VLOOKUP(F131,Hoja1!$A$50:$C$63,3),"") -> 15
A132: 122 | B132: 20259910111944 | C132: 2025-07-07 | D132: Persona jurídica | E132: Virtual - Correo electrónico | F132: Petición entre entidades | G132: Bosques | I132: Subdirección de Ecosistemas e Información Ambiental | J132: 2025-07-18 | K132: Correo electrónico | L132: 2025-07-21 | Q132: A TIEMPO | R132: 9 | S132: 0 | U132: =IFERROR(VLOOKUP(F132,Hoja1!$A$50:$C$63,2),"") -> 10 | V132: =IFERROR(VLOOKUP(F132,Hoja1!$A$50:$C$63,3),"") -> 10
A133: 123 | B133: 20259910111954 | C133: 2025-07-07 | D133: Persona jurídica | E133: Virtual - Correo electrónico | F133: Solicitud de documentos o información | G133: Registros ambientales | I133: Subdirección de Estudios Ambientales | J133: 2025-07-10 | K133: Correo electrónico | L133: 2025-07-21 | Q133: A TIEMPO | R133: 3 | S133: 0 | U133: =IFERROR(VLOOKUP(F133,Hoja1!$A$50:$C$63,2),"") -> 5 | V133: =IFERROR(VLOOKUP(F133,Hoja1!$A$50:$C$63,3),"") -> 5
A134: 124 | B134: 20259050111964 | C134: 2025-07-07 | D134: Persona natural | E134: Formulario PQRSDF | F134: Solicitud de documentos o información | G134: Solicitud de información hidrometeorológica | I134: Subdirección de Hidrología | J134: 2025-07-16 | K134: Correo electrónico | L134: 2025-07-21 | Q134: A TIEMPO | R134: 7 | S134: 0 | U134: =IFERROR(VLOOKUP(F134,Hoja1!$A$50:$C$63,2),"") -> 5 | V134: =IFERROR(VLOOKUP(F134,Hoja1!$A$50:$C$63,3),"") -> 5
A135: 125 | B135: 20259910111974 | C135: 2025-07-07 | D135: Persona jurídica | E135: Virtual - Correo electrónico | F135: Petición entre autoridades | G135: Bosques | I135: Subdirección de Estudios Ambientales | J135: 2025-07-08 | K135: Correo electrónico | L135: 2025-07-21 | Q135: A TIEMPO | R135: 1 | S135: 0 | U135: =IFERROR(VLOOKUP(F135,Hoja1!$A$50:$C$63,2),"") -> 10 | V135: =IFERROR(VLOOKUP(F135,Hoja1!$A$50:$C$63,3),"") -> 10
A136: 126 | B136: 20259050112024 | C136: 2025-07-07 | D136: Persona natural | E136: Formulario PQRSDF | F136: Solicitud de documentos o información | G136: Solicitud de información hidrometeorológica | I136: Subdirección de Meteorología | J136: 2025-07-18 | K136: Correo electrónico | L136: 2025-07-21 | Q136: A TIEMPO | R136: 9 | S136: 0 | U136: =IFERROR(VLOOKUP(F136,Hoja1!$A$50:$C$63,2),"") -> 5 | V136: =IFERROR(VLOOKUP(F136,Hoja1!$A$50:$C$63,3),"") -> 5
A137: 127 | B137: 20259910112034 | C137: 2025-07-07 | D137: Persona natural | E137: Virtual - Correo electrónico | F137: Solicitud de documentos o información | G137: Solicitud de información hidrometeorológica | I137: Grupo de Servicio al Ciudadano | J137: 2025-07-10 | K137: Correo electrónico | L137: 2025-07-21 | Q137: A TIEMPO | R137: 3 | S137: 0 | U137: =IFERROR(VLOOKUP(F137,Hoja1!$A$50:$C$63,2),"") -> 5 | V137: =IFERROR(VLOOKUP(F137,Hoja1!$A$50:$C$63,3),"") -> 5
A138: 128 | B138: 20259910112044 | C138: 2025-07-07 | D138: Persona natural | E138: Virtual - Correo electrónico | F138: Solicitud de documentos o información | G138: Solicitud de información hidrometeorológica | I138: Subdirección de Meteorología | J138: 2025-07-09 | K138: Correo electrónico | L138: 2025-07-21 | Q138: A TIEMPO | R138: 2 | S138: 0 | U138: =IFERROR(VLOOKUP(F138,Hoja1!$A$50:$C$63,2),"") -> 5 | V138: =IFERROR(VLOOKUP(F138,Hoja1!$A$50:$C$63,3),"") -> 5
A139: 129 | B139: 20259910112084 | C139: 2025-07-07 | D139: Persona jurídica | E139: Virtual - Correo electrónico | F139: Solicitud de documentos o información | G139: Registros ambientales | I139: Subdirección de Estudios Ambientales | J139: 2025-07-10 | K139: Correo electrónico | L139: 2025-07-21 | Q139: A TIEMPO | R139: 3 | S139: 0 | U139: =IFERROR(VLOOKUP(F139,Hoja1!$A$50:$C$63,2),"") -> 5 | V139: =IFERROR(VLOOKUP(F139,Hoja1!$A$50:$C$63,3),"") -> 5
A140: 130 | B140: 20259910112134 | C140: 2025-07-07 | D140: Persona natural | E140: Virtual - Correo electrónico | F140: Solicitud de documentos o información | G140: Solicitud de información hidrometeorológica | I140: Grupo de Servicio al Ciudadano | J140: 2025-07-10 | K140: Correo electrónico | L140: 2025-07-21 | Q140: A TIEMPO | R140: 3 | S140: 0 | U140: =IFERROR(VLOOKUP(F140,Hoja1!$A$50:$C$63,2),"") -> 5 | V140: =IFERROR(VLOOKUP(F140,Hoja1!$A$50:$C$63,3),"") -> 5
A141: 131 | B141: 20259910112154 | C141: 2025-07-07 | D141: Persona jurídica | E141: Virtual - Correo electrónico | F141: Solicitud de documentos o información | G141: Solicitud de información hidrometeorológica | I141: Subdirección de Meteorología | J141: 2025-07-16 | K141: Correo electrónico | L141: 2025-07-21 | Q141: A TIEMPO | R141: 7 | S141: 0 | U141: =IFERROR(VLOOKUP(F141,Hoja1!$A$50:$C$63,2),"") -> 5 | V141: =IFERROR(VLOOKUP(F141,Hoja1!$A$50:$C$63,3),"") -> 5
A142: 132 | B142: 20259910112164 | C142: 2025-07-07 | D142: Persona natural | E142: Virtual - Correo electrónico | F142: Solicitud de documentos o información | G142: Sistema de información ambiental | I142: Subdirección de Estudios Ambientales | J142: 2025-07-10 | K142: Correo electrónico | L142: 2025-07-21 | Q142: A TIEMPO | R142: 3 | S142: 0 | U142: =IFERROR(VLOOKUP(F142,Hoja1!$A$50:$C$63,2),"") -> 5 | V142: =IFERROR(VLOOKUP(F142,Hoja1!$A$50:$C$63,3),"") -> 5
A143: 133 | B143: 20259050112174 | C143: 2025-07-07 | D143: Persona natural | E143: Formulario PQRSDF | F143: Solicitud de documentos o información | G143: Administrativa | I143: Grupo de Administración y Desarrollo del Talento Humano | J143: 2025-07-14 | K143: No aplica | L143: 2025-07-21 | Q143: A TIEMPO | R143: 5 | S143: 0 | U143: =IFERROR(VLOOKUP(F143,Hoja1!$A$50:$C$63,2),"") -> 5 | V143: =IFERROR(VLOOKUP(F143,Hoja1!$A$50:$C$63,3),"") -> 5
A144: 134 | B144: 20259050112184 | C144: 2025-07-07 | D144: Persona natural | E144: Formulario PQRSDF | F144: Certificación electrónica de tiempos laborados - CETIL | G144: Administrativa | I144: Grupo de Administración y Desarrollo del Talento Humano | J144: 2025-07-10 | K144: Correo electrónico | L144: 2025-07-28 | Q144: A TIEMPO | R144: 3 | S144: 0 | U144: =IFERROR(VLOOKUP(F144,Hoja1!$A$50:$C$63,2),"") -> 15 | V144: =IFERROR(VLOOKUP(F144,Hoja1!$A$50:$C$63,3),"") -> 15
A145: =IF(B145<>"",A144+1,"") -> 135 | B145: 20259050112194 | C145: 2025-07-07 | D145: Persona natural | E145: Formulario PQRSDF | F145: Petición de interés general o particular | G145: Registros ambientales | I145: Subdirección de Estudios Ambientales | J145: 2025-07-10 | K145: Correo electrónico | L145: 2025-07-28 | Q145: A TIEMPO | R145: 3 | S145: 0 | U145: =IFERROR(VLOOKUP(F145,Hoja1!$A$50:$C$63,2),"") -> 15 | V145: =IFERROR(VLOOKUP(F145,Hoja1!$A$50:$C$63,3),"") -> 15
A146: 136 | B146: 20259050112204 | C146: 2025-07-07 | D146: Persona natural | E146: Formulario PQRSDF | F146: Solicitud de documentos o información | G146: Bosques | I146: Subdirección de Ecosistemas e Información Ambiental | J146: 2025-08-04 | K146: Correo electrónico | M146: Si | N146: 2025-08-04 | O146: 2025-07-21 | P146: A TIEMPO | Q146: A TIEMPO | R146: 20 | S146: 0 | U146: =IFERROR(VLOOKUP(F146,Hoja1!$A$50:$C$63,2),"") -> 5 | V146: =IFERROR(VLOOKUP(F146,Hoja1!$A$50:$C$63,3),"") -> 5
A147: 137 | B147: 20259050112214 | C147: 2025-07-07 | D147: Persona jurídica | E147: Formulario PQRSDF | F147: Solicitud de documentos o información | G147: Solicitud de información hidrometeorológica | I147: Subdirección de Meteorología | J147: 2025-07-15 | K147: Correo electrónico | L147: 2025-07-21 | Q147: A TIEMPO | R147: 6 | S147: 0 | U147: =IFERROR(VLOOKUP(F147,Hoja1!$A$50:$C$63,2),"") -> 5 | V147: =IFERROR(VLOOKUP(F147,Hoja1!$A$50:$C$63,3),"") -> 5
A148: 138 | B148: 20259050112224 | C148: 2025-07-08 | D148: Persona natural | E148: Formulario PQRSDF | F148: Certificación laboral o pasantía | G148: Administrativa | I148: Grupo de Administración y Desarrollo del Talento Humano | J148: 2025-07-09 | K148: Correo electrónico | L148: 2025-07-22 | Q148: A TIEMPO | R148: 1 | S148: 0 | U148: =IFERROR(VLOOKUP(F148,Hoja1!$A$50:$C$63,2),"") -> 15 | V148: =IFERROR(VLOOKUP(F148,Hoja1!$A$50:$C$63,3),"") -> 15
A149: 139 | B149: 20259240111794 | C149: 2025-07-07 | D149: Persona jurídica | E149: Virtual - Correo electrónico | F149: Solicitud de documentos o información | G149: Visitas académicas | I149: Área Operativa No. 4 - Neiva | J149: 2025-07-10 | K149: Correo electrónico | L149: 2025-07-21 | Q149: A TIEMPO | R149: 3 | S149: 0 | U149: =IFERROR(VLOOKUP(F149,Hoja1!$A$50:$C$63,2),"") -> 5 | V149: =IFERROR(VLOOKUP(F149,Hoja1!$A$50:$C$63,3),"") -> 5
A150: 140 | B150: 20259910112254 | C150: 2025-07-08 | D150: Persona natural | E150: Virtual - Correo electrónico | F150: Solicitud de documentos o información | G150: Solicitud de información hidrometeorológica | I150: Grupo de Servicio al Ciudadano | J150: 2025-07-10 | K150: Correo electrónico | L150: 2025-07-22 | Q150: A TIEMPO | R150: 2 | S150: 0 | U150: =IFERROR(VLOOKUP(F150,Hoja1!$A$50:$C$63,2),"") -> 5 | V150: =IFERROR(VLOOKUP(F150,Hoja1!$A$50:$C$63,3),"") -> 5
A151: 141 | B151: 20259910112314 | C151: 2025-07-08 | D151: Persona natural | E151: Virtual - Correo electrónico | F151: Solicitud de documentos o información | G151: Solicitud de información hidrometeorológica | I151: Grupo de Servicio al Ciudadano | J151: 2025-07-16 | K151: Correo electrónico | L151: 2025-07-22 | Q151: A TIEMPO | R151: 6 | S151: 0 | U151: =IFERROR(VLOOKUP(F151,Hoja1!$A$50:$C$63,2),"") -> 5 | V151: =IFERROR(VLOOKUP(F151,Hoja1!$A$50:$C$63,3),"") -> 5
A152: 142 | B152: 20259050112334 | C152: 2025-07-08 | D152: Persona natural | E152: Formulario PQRSDF | F152: Solicitud de documentos o información | G152: Solicitud de información hidrometeorológica | I152: Grupo de Servicio al Ciudadano | J152: 2025-07-10 | K152: Correo electrónico | L152: 2025-07-22 | Q152: A TIEMPO | R152: 2 | S152: 0 | U152: =IFERROR(VLOOKUP(F152,Hoja1!$A$50:$C$63,2),"") -> 5 | V152: =IFERROR(VLOOKUP(F152,Hoja1!$A$50:$C$63,3),"") -> 5
A153: 143 | B153: 20259050112354 | C153: 2025-07-08 | D153: Persona natural | E153: Formulario PQRSDF | F153: Solicitud de documentos o información | G153: Solicitud de información hidrometeorológica | I153: Grupo de Servicio al Ciudadano | J153: 2025-07-10 | K153: Correo electrónico | L153: 2025-07-22 | Q153: A TIEMPO | R153: 2 | S153: 0 | U153: =IFERROR(VLOOKUP(F153,Hoja1!$A$50:$C$63,2),"") -> 5 | V153: =IFERROR(VLOOKUP(F153,Hoja1!$A$50:$C$63,3),"") -> 5
A154: 144 | B154: 20259910112364 | C154: 2025-07-08 | D154: Persona jurídica | E154: Virtual - Correo electrónico | F154: Solicitud judicial | G154: Certificaciones del tiempo y clima | I154: Subdirección de Meteorología | J154: 2025-07-11 | K154: Correo electrónico | L154: 2025-07-15 | Q154: A TIEMPO | R154: 3 | S154: 0 | U154: =IFERROR(VLOOKUP(F154,Hoja1!$A$50:$C$63,2),"") -> 5 | V154: =IFERROR(VLOOKUP(F154,Hoja1!$A$50:$C$63,3),"") -> 5
A155: 145 | B155: 20259050112394 | C155: 2025-07-08 | D155: Persona jurídica | E155: Formulario PQRSDF | F155: Solicitud de documentos o información | G155: Bosques | I155: Subdirección de Ecosistemas e Información Ambiental | J155: 2025-07-15 | K155: Correo electrónico | L155: 2025-07-22 | Q155: A TIEMPO | R155: 5 | S155: 0 | U155: =IFERROR(VLOOKUP(F155,Hoja1!$A$50:$C$63,2),"") -> 5 | V155: =IFERROR(VLOOKUP(F155,Hoja1!$A$50:$C$63,3),"") -> 5
A156: 146 | B156: 20259910112404 | C156: 2025-07-08 | D156: Persona natural | E156: Virtual - Correo electrónico | F156: Certificación de contrato | G156: Administrativa | I156: Oficina Asesora Jurídica | J156: 2025-07-10 | K156: Correo electrónico | L156: 2025-07-29 | Q156: A TIEMPO | R156: 2 | S156: 0 | U156: =IFERROR(VLOOKUP(F156,Hoja1!$A$50:$C$63,2),"") -> 15 | V156: =IFERROR(VLOOKUP(F156,Hoja1!$A$50:$C$63,3),"") -> 15
A157: 147 | B157: 20259050112424 | C157: 2025-07-08 | D157: Persona jurídica | E157: Formulario PQRSDF | F157: Solicitud de documentos o información | G157: Bosques | I157: Subdirección de Estudios Ambientales | J157: 2025-07-23 | K157: Correo electrónico | L157: 2025-07-22 | Q157: FUERA DE TIEMPO | R157: 11 | S157: 1 | U157: =IFERROR(VLOOKUP(F157,Hoja1!$A$50:$C$63,2),"") -> 5 | V157: =IFERROR(VLOOKUP(F157,Hoja1!$A$50:$C$63,3),"") -> 5
A158: 148 | B158: 20259050112464 | C158: 2025-07-08 | D158: Persona natural | E158: Formulario PQRSDF | F158: Solicitud de documentos o información | G158: Bosques | I158: Subdirección de Ecosistemas e Información Ambiental | J158: 2025-07-15 | K158: Correo electrónico | L158: 2025-07-22 | Q158: A TIEMPO | R158: 5 | S158: 0 | U158: =IFERROR(VLOOKUP(F158,Hoja1!$A$50:$C$63,2),"") -> 5 | V158: =IFERROR(VLOOKUP(F158,Hoja1!$A$50:$C$63,3),"") -> 5
A159: 149 | B159: 20259910112484 | C159: 2025-07-08 | D159: Persona jurídica | E159: Virtual - Correo electrónico | F159: Petición entre entidades | G159: Registros ambientales | I159: Subdirección de Estudios Ambientales | J159: 2025-07-18 | K159: Correo electrónico | L159: 2025-07-22 | Q159: A TIEMPO | R159: 8 | S159: 0 | U159: =IFERROR(VLOOKUP(F159,Hoja1!$A$50:$C$63,2),"") -> 10 | V159: =IFERROR(VLOOKUP(F159,Hoja1!$A$50:$C$63,3),"") -> 10
A160: 150 | B160: 20259050112494 | C160: 2025-07-08 | D160: Persona natural | E160: Formulario PQRSDF | F160: Solicitud de documentos o información | G160: Administrativa | I160: Grupo de Administración y Desarrollo del Talento Humano | J160: 2025-07-15 | K160: Correo electrónico | L160: 2025-07-22 | Q160: A TIEMPO | R160: 5 | S160: 0 | U160: =IFERROR(VLOOKUP(F160,Hoja1!$A$50:$C$63,2),"") -> 5 | V160: =IFERROR(VLOOKUP(F160,Hoja1!$A$50:$C$63,3),"") -> 5
A161: 151 | B161: 20259910112504 | C161: 2025-07-08 | D161: Persona jurídica | E161: Virtual - Correo electrónico | F161: Petición entre autoridades | G161: Sistema de información del recurso hídrico | I161: Subdirección de Meteorología | J161: 2025-07-17 | K161: Correo electrónico | L161: 2025-07-22 | Q161: A TIEMPO | R161: 7 | S161: 0 | U161: =IFERROR(VLOOKUP(F161,Hoja1!$A$50:$C$63,2),"") -> 10 | V161: =IFERROR(VLOOKUP(F161,Hoja1!$A$50:$C$63,3),"") -> 10
A162: 152 | B162: 20259910112534 | C162: 2025-07-08 | D162: Persona jurídica | E162: Correo certificado | F162: Petición entre entidades | G162: Sistema de información del recurso hídrico | I162: Subdirección de Estudios Ambientales | J162: 2025-07-17 | K162: Correo electrónico | L162: 2025-07-22 | Q162: A TIEMPO | R162: 7 | S162: 0 | U162: =IFERROR(VLOOKUP(F162,Hoja1!$A$50:$C$63,2),"") -> 10 | V162: =IFERROR(VLOOKUP(F162,Hoja1!$A$50:$C$63,3),"") -> 10
A163: 153 | B163: 20259910112554 | C163: 2025-07-08 | D163: Persona jurídica | E163: Virtual - Correo electrónico | F163: Solicitud de documentos o información | G163: Registros ambientales | I163: Subdirección de Estudios Ambientales | J163: 2025-07-11 | K163: Correo electrónico | L163: 2025-07-22 | Q163: A TIEMPO | R163: 3 | S163: 0 | U163: =IFERROR(VLOOKUP(F163,Hoja1!$A$50:$C$63,2),"") -> 5 | V163: =IFERROR(VLOOKUP(F163,Hoja1!$A$50:$C$63,3),"") -> 5
A164: 154 | B164: 20259910112584 | C164: 2025-07-08 | D164: Persona natural | E164: Virtual - Correo electrónico | F164: Petición de interés general o particular | G164: Certificaciones del tiempo y clima | I164: Subdirección de Meteorología | J164: 2025-07-25 | K164: Correo electrónico | L164: 2025-07-29 | Q164: A TIEMPO | R164: 13 | S164: 0 | U164: =IFERROR(VLOOKUP(F164,Hoja1!$A$50:$C$63,2),"") -> 15 | V164: =IFERROR(VLOOKUP(F164,Hoja1!$A$50:$C$63,3),"") -> 15
A165: 155 | B165: 20259910112604 | C165: 2025-07-08 | D165: Persona jurídica | E165: Virtual - Correo electrónico | F165: Petición entre autoridades | G165: Bosques | I165: Subdirección de Ecosistemas e Información Ambiental | J165: 2025-07-15 | K165: Correo electrónico | L165: 2025-07-22 | Q165: A TIEMPO | R165: 5 | S165: 0 | U165: =IFERROR(VLOOKUP(F165,Hoja1!$A$50:$C$63,2),"") -> 10 | V165: =IFERROR(VLOOKUP(F165,Hoja1!$A$50:$C$63,3),"") -> 10
A166: 156 | B166: 20259910112614 | C166: 2025-07-08 | D166: Persona jurídica | E166: Virtual - Correo electrónico | F166: Petición de interés general o particular | G166: Visitas académicas | I166: Grupo de Servicio al Ciudadano | J166: 2025-07-23 | K166: Correo electrónico | L166: 2025-07-29 | Q166: A TIEMPO | R166: 11 | S166: 0 | U166: =IFERROR(VLOOKUP(F166,Hoja1!$A$50:$C$63,2),"") -> 15 | V166: =IFERROR(VLOOKUP(F166,Hoja1!$A$50:$C$63,3),"") -> 15
A167: 157 | B167: 20259910112624 | C167: 2025-07-08 | D167: Persona jurídica | E167: Virtual - Correo electrónico | F167: Petición entre autoridades | G167: Bosques | I167: Subdirección de Ecosistemas e Información Ambiental | J167: 2025-08-05 | K167: Correo electrónico | M167: Si | N167: 2025-08-05 | O167: 2025-07-22 | P167: A TIEMPO | Q167: A TIEMPO | R167: 20 | S167: 0 | U167: =IFERROR(VLOOKUP(F167,Hoja1!$A$50:$C$63,2),"") -> 10 | V167: =IFERROR(VLOOKUP(F167,Hoja1!$A$50:$C$63,3),"") -> 10
A168: 158 | B168: 20259910112634 | C168: 2025-07-08 | D168: Persona jurídica | E168: Virtual - Correo electrónico | F168: Certificación de tiempo, clima y eventos hidrológicos | G168: Certificaciones del tiempo y clima | I168: Subdirección de Meteorología | J168: 2025-08-21 | K168: Correo electrónico | L168: 2025-08-21 | Q168: A TIEMPO | R168: 30 | S168: 0 | U168: =IFERROR(VLOOKUP(F168,Hoja1!$A$50:$C$63,2),"") -> 15 | V168: =IFERROR(VLOOKUP(F168,Hoja1!$A$50:$C$63,3),"") -> 15
A169: 159 | B169: 20259050112644 | C169: 2025-07-08 | D169: Persona jurídica | E169: Formulario PQRSDF | F169: Certificación de tiempo, clima y eventos hidrológicos | G169: Certificaciones del tiempo y clima | I169: Subdirección de Meteorología | J169: 2025-08-19 | K169: Correo electrónico | L169: 2025-08-21 | Q169: A TIEMPO | R169: 28 | S169: 0 | U169: =IFERROR(VLOOKUP(F169,Hoja1!$A$50:$C$63,2),"") -> 15 | V169: =IFERROR(VLOOKUP(F169,Hoja1!$A$50:$C$63,3),"") -> 15
A170: 160 | B170: 20259050112654 | C170: 2025-07-08 | D170: Persona natural | E170: Formulario PQRSDF | F170: Solicitud de documentos o información | G170: Solicitud de información hidrometeorológica | I170: Grupo de Servicio al Ciudadano | J170: 2025-07-11 | K170: Correo electrónico | L170: 2025-07-22 | Q170: A TIEMPO | R170: 3 | S170: 0 | U170: =IFERROR(VLOOKUP(F170,Hoja1!$A$50:$C$63,2),"") -> 5 | V170: =IFERROR(VLOOKUP(F170,Hoja1!$A$50:$C$63,3),"") -> 5
A171: 161 | B171: 20259910112664 | C171: 2025-07-08 | D171: Persona jurídica | E171: Virtual - Correo electrónico | F171: Petición de interés general o particular | G171: Administrativa | I171: Grupo de Servicio al Ciudadano | J171: 2025-07-17 | K171: Correo electrónico | L171: 2025-07-29 | Q171: A TIEMPO | R171: 7 | S171: 0 | U171: =IFERROR(VLOOKUP(F171,Hoja1!$A$50:$C$63,2),"") -> 15 | V171: =IFERROR(VLOOKUP(F171,Hoja1!$A$50:$C$63,3),"") -> 15
A172: 162 | B172: 20259050112694 | C172: 2025-07-08 | D172: Persona natural | E172: Formulario PQRSDF | F172: Reclamo | G172: Bosques | I172: Oficina Asesora Jurídica | J172: 2025-08-21 | K172: Correo electrónico | L172: 2025-07-29 | Q172: FUERA DE TIEMPO | R172: 30 | S172: 15 | U172: =IFERROR(VLOOKUP(F172,Hoja1!$A$50:$C$63,2),"") -> 15 | V172: =IFERROR(VLOOKUP(F172,Hoja1!$A$50:$C$63,3),"") -> 15
A173: 163 | B173: 20259050112714 | C173: 2025-07-08 | D173: Persona jurídica | E173: Formulario PQRSDF | F173: Solicitud de documentos o información | G173: Solicitud de información hidrometeorológica | I173: Grupo de Servicio al Ciudadano | J173: 2025-07-14 | K173: Correo electrónico | L173: 2025-07-22 | Q173: A TIEMPO | R173: 4 | S173: 0 | U173: =IFERROR(VLOOKUP(F173,Hoja1!$A$50:$C$63,2),"") -> 5 | V173: =IFERROR(VLOOKUP(F173,Hoja1!$A$50:$C$63,3),"") -> 5
A174: 164 | B174: 20259050112744 | C174: 2025-07-08 | D174: Persona jurídica | E174: Formulario PQRSDF | F174: Petición entre entidades | G174: Certificaciones del tiempo y clima | I174: Subdirección de Meteorología | J174: 2025-07-18 | K174: Correo electrónico | L174: 2025-07-22 | Q174: A TIEMPO | R174: 8 | S174: 0 | U174: =IFERROR(VLOOKUP(F174,Hoja1!$A$50:$C$63,2),"") -> 10 | V174: =IFERROR(VLOOKUP(F174,Hoja1!$A$50:$C$63,3),"") -> 10
A175: 165 | B175: 20259910112784 | C175: 2025-07-08 | D175: Persona jurídica | E175: Virtual - Correo electrónico | F175: Petición entre entidades | G175: Administrativa | I175: Subdirección de Estudios Ambientales | J175: 2025-07-17 | K175: Correo electrónico | L175: 2025-07-22 | Q175: A TIEMPO | R175: 7 | S175: 0 | U175: =IFERROR(VLOOKUP(F175,Hoja1!$A$50:$C$63,2),"") -> 10 | V175: =IFERROR(VLOOKUP(F175,Hoja1!$A$50:$C$63,3),"") -> 10
A176: 166 | B176: 20259050112844 | C176: 2025-07-08 | D176: Persona natural | E176: Formulario PQRSDF | F176: Solicitud de documentos o información | G176: Administrativa | I176: Grupo de Administración y Desarrollo del Talento Humano | J176: 2025-07-21 | K176: Correo electrónico | L176: 2025-07-22 | Q176: A TIEMPO | R176: 9 | S176: 0 | U176: =IFERROR(VLOOKUP(F176,Hoja1!$A$50:$C$63,2),"") -> 5 | V176: =IFERROR(VLOOKUP(F176,Hoja1!$A$50:$C$63,3),"") -> 5
A177: 167 | B177: 20259910112824 | C177: 2025-07-08 | D177: Persona jurídica | E177: Virtual - Correo electrónico | F177: Petición entre entidades | G177: Certificaciones del tiempo y clima | I177: Subdirección de Meteorología | J177: 2025-07-11 | K177: Correo electrónico | L177: 2025-07-22 | Q177: A TIEMPO | R177: 3 | S177: 0 | U177: =IFERROR(VLOOKUP(F177,Hoja1!$A$50:$C$63,2),"") -> 10 | V177: =IFERROR(VLOOKUP(F177,Hoja1!$A$50:$C$63,3),"") -> 10
A178: 168 | B178: 20259050112934 | C178: 2025-07-08 | D178: Persona natural | E178: Formulario PQRSDF | F178: Solicitud de documentos o información | G178: Solicitud de información hidrometeorológica | I178: Grupo de Servicio al Ciudadano | J178: 2025-07-14 | K178: Correo electrónico | L178: 2025-07-22 | Q178: A TIEMPO | R178: 4 | S178: 0 | U178: =IFERROR(VLOOKUP(F178,Hoja1!$A$50:$C$63,2),"") -> 5 | V178: =IFERROR(VLOOKUP(F178,Hoja1!$A$50:$C$63,3),"") -> 5
A179: 169 | B179: 20259050112944 | C179: 2025-07-08 | D179: Persona natural | E179: Formulario PQRSDF | F179: Solicitud de documentos o información | G179: Bosques | I179: Subdirección de Ecosistemas e Información Ambiental | J179: 2025-08-08 | K179: Correo electrónico | M179: Si | N179: 2025-08-05 | O179: 2025-07-22 | P179: FUERA DE TIEMPO | Q179: FUERA DE TIEMPO | R179: 22 | S179: 2 | U179: =IFERROR(VLOOKUP(F179,Hoja1!$A$50:$C$63,2),"") -> 5 | V179: =IFERROR(VLOOKUP(F179,Hoja1!$A$50:$C$63,3),"") -> 5
A180: 170 | B180: 20259050113004 | C180: 2025-07-08 | D180: Anónimo | E180: Formulario PQRSDF | F180: Solicitud de documentos o información | G180: Solicitud de información hidrometeorológica | I180: Subdirección de Hidrología | J180: 2025-07-18 | K180: Correo electrónico | L180: 2025-07-22 | Q180: A TIEMPO | R180: 8 | S180: 0 | U180: =IFERROR(VLOOKUP(F180,Hoja1!$A$50:$C$63,2),"") -> 5 | V180: =IFERROR(VLOOKUP(F180,Hoja1!$A$50:$C$63,3),"") -> 5
A181: 171 | B181: 20259050113014 | C181: 2025-07-08 | D181: Persona natural | E181: Formulario PQRSDF | F181: Solicitud de documentos o información | G181: Sistema de información del recurso hídrico | I181: Subdirección de Hidrología | J181: 2025-07-18 | K181: Correo electrónico | L181: 2025-07-22 | Q181: A TIEMPO | R181: 8 | S181: 0 | U181: =IFERROR(VLOOKUP(F181,Hoja1!$A$50:$C$63,2),"") -> 5 | V181: =IFERROR(VLOOKUP(F181,Hoja1!$A$50:$C$63,3),"") -> 5
A182: 172 | B182: 20259050112754 | C182: 2025-07-08 | D182: Persona natural | E182: Formulario PQRSDF | F182: Solicitud de documentos o información | G182: Solicitud de información hidrometeorológica | I182: Subdirección de Meteorología | J182: 2025-07-18 | K182: Correo electrónico | L182: 2025-07-22 | Q182: A TIEMPO | R182: 8 | S182: 0 | U182: =IFERROR(VLOOKUP(F182,Hoja1!$A$50:$C$63,2),"") -> 5 | V182: =IFERROR(VLOOKUP(F182,Hoja1!$A$50:$C$63,3),"") -> 5
A183: 173 | B183: 20259910113034 | C183: 2025-07-09 | D183: Persona jurídica | E183: Virtual - Correo electrónico | F183: Solicitud de documentos o información | G183: Registros ambientales | I183: Subdirección de Estudios Ambientales | J183: 2025-07-17 | K183: Correo electrónico | L183: 2025-07-23 | Q183: A TIEMPO | R183: 6 | S183: 0 | U183: =IFERROR(VLOOKUP(F183,Hoja1!$A$50:$C$63,2),"") -> 5 | V183: =IFERROR(VLOOKUP(F183,Hoja1!$A$50:$C$63,3),"") -> 5
A184: 174 | B184: 20259910113044 | C184: 2025-07-09 | D184: Persona jurídica | E184: Virtual - Correo electrónico | F184: Petición entre entidades | G184: Solicitud de información hidrometeorológica | I184: Subdirección de Meteorología | J184: 2025-07-16 | K184: Correo electrónico | L184: 2025-07-23 | Q184: A TIEMPO | R184: 5 | S184: 0 | U184: =IFERROR(VLOOKUP(F184,Hoja1!$A$50:$C$63,2),"") -> 10 | V184: =IFERROR(VLOOKUP(F184,Hoja1!$A$50:$C$63,3),"") -> 10
A185: 175 | B185: 20259910113074 | C185: 2025-07-09 | D185: Persona jurídica | E185: Virtual - Correo electrónico | F185: Certificación de tiempo, clima y eventos hidrológicos | G185: Certificaciones del tiempo y clima | I185: Subdirección de Meteorología | J185: 2025-08-21 | K185: Correo electrónico | L185: 2025-08-22 | Q185: A TIEMPO | R185: 29 | S185: 0 | U185: =IFERROR(VLOOKUP(F185,Hoja1!$A$50:$C$63,2),"") -> 15 | V185: =IFERROR(VLOOKUP(F185,Hoja1!$A$50:$C$63,3),"") -> 15
A186: 176 | B186: 20259910113144 | C186: 2025-07-09 | D186: Persona natural | E186: Virtual - Correo electrónico | F186: Solicitud de documentos o información | G186: Administrativa | I186: Grupo de Administración y Desarrollo del Talento Humano | J186: 2025-07-10 | K186: Correo electrónico | L186: 2025-07-23 | Q186: A TIEMPO | R186: 1 | S186: 0 | U186: =IFERROR(VLOOKUP(F186,Hoja1!$A$50:$C$63,2),"") -> 5 | V186: =IFERROR(VLOOKUP(F186,Hoja1!$A$50:$C$63,3),"") -> 5
A187: 177 | B187: 20259910113154 | C187: 2025-07-09 | D187: Persona jurídica | E187: Virtual - Correo electrónico | F187: Certificación de tiempo, clima y eventos hidrológicos | G187: Certificaciones del tiempo y clima | I187: Subdirección de Meteorología | J187: 2025-08-21 | K187: No aplica | L187: 2025-08-22 | Q187: A TIEMPO | R187: 29 | S187: 0 | U187: =IFERROR(VLOOKUP(F187,Hoja1!$A$50:$C$63,2),"") -> 15 | V187: =IFERROR(VLOOKUP(F187,Hoja1!$A$50:$C$63,3),"") -> 15
A188: 178 | B188: 20259050113204 | C188: 2025-07-09 | D188: Persona natural | E188: Formulario PQRSDF | F188: Certificación laboral o pasantía | G188: Administrativa | I188: Grupo de Administración y Desarrollo del Talento Humano | J188: 2025-07-10 | K188: Correo electrónico | L188: 2025-07-23 | Q188: A TIEMPO | R188: 1 | S188: 0 | U188: =IFERROR(VLOOKUP(F188,Hoja1!$A$50:$C$63,2),"") -> 15 | V188: =IFERROR(VLOOKUP(F188,Hoja1!$A$50:$C$63,3),"") -> 15
A189: 179 | B189: 20259910113274 | C189: 2025-07-09 | D189: Persona jurídica | E189: Virtual - Correo electrónico | F189: Certificación de tiempo, clima y eventos hidrológicos | G189: Certificaciones del tiempo y clima | I189: Subdirección de Meteorología | J189: 2025-08-21 | K189: Correo electrónico | L189: 2025-08-22 | Q189: A TIEMPO | R189: 29 | S189: 0 | U189: =IFERROR(VLOOKUP(F189,Hoja1!$A$50:$C$63,2),"") -> 15 | V189: =IFERROR(VLOOKUP(F189,Hoja1!$A$50:$C$63,3),"") -> 15
A190: 180 | B190: 20259910113314 | C190: 2025-07-09 | D190: Persona natural | E190: Virtual - Correo electrónico | F190: Solicitud de documentos o información | G190: Sistema de información del recurso hídrico | I190: Subdirección de Hidrología | J190: 2025-07-18 | K190: Correo electrónico | L190: 2025-07-23 | Q190: A TIEMPO | R190: 7 | S190: 0 | U190: =IFERROR(VLOOKUP(F190,Hoja1!$A$50:$C$63,2),"") -> 5 | V190: =IFERROR(VLOOKUP(F190,Hoja1!$A$50:$C$63,3),"") -> 5
A191: 181 | B191: 20259910113394 | C191: 2025-07-09 | D191: Persona jurídica | E191: Virtual - Correo electrónico | F191: Solicitud de documentos o información | G191: Registros ambientales | I191: Subdirección de Estudios Ambientales | J191: 2025-07-17 | K191: Correo electrónico | L191: 2025-07-23 | Q191: A TIEMPO | R191: 6 | S191: 0 | U191: =IFERROR(VLOOKUP(F191,Hoja1!$A$50:$C$63,2),"") -> 5 | V191: =IFERROR(VLOOKUP(F191,Hoja1!$A$50:$C$63,3),"") -> 5
A192: 182 | B192: 20259050113384 | C192: 2025-07-09 | D192: Persona natural | E192: Formulario PQRSDF | F192: Solicitud de documentos o información | G192: Sistema de información del recurso hídrico | I192: Subdirección de Hidrología | J192: 2025-07-17 | K192: Correo electrónico | L192: 2025-07-23 | Q192: A TIEMPO | R192: 6 | S192: 0 | U192: =IFERROR(VLOOKUP(F192,Hoja1!$A$50:$C$63,2),"") -> 5 | V192: =IFERROR(VLOOKUP(F192,Hoja1!$A$50:$C$63,3),"") -> 5
A193: 183 | B193: 20259910113264 | C193: 2025-07-09 | D193: Persona natural | E193: Virtual - Correo electrónico | F193: Solicitud de documentos o información | G193: Sistema de información ambiental | I193: Grupo de Gestión Documental y Centro de Documentación | J193: 2025-07-11 | K193: Correo electrónico | L193: 2025-07-23 | Q193: A TIEMPO | R193: 2 | S193: 0 | U193: =IFERROR(VLOOKUP(F193,Hoja1!$A$50:$C$63,2),"") -> 5 | V193: =IFERROR(VLOOKUP(F193,Hoja1!$A$50:$C$63,3),"") -> 5
A194: 184 | B194: 20259910113174 | C194: 2025-07-09 | D194: Persona natural | E194: Virtual - Correo electrónico | F194: Solicitud de documentos o información | G194: Suelos y tierras | I194: Subdirección de Ecosistemas e Información Ambiental | J194: 2025-07-17 | K194: Correo electrónico | L194: 2025-07-23 | Q194: A TIEMPO | R194: 6 | S194: 0 | U194: =IFERROR(VLOOKUP(F194,Hoja1!$A$50:$C$63,2),"") -> 5 | V194: =IFERROR(VLOOKUP(F194,Hoja1!$A$50:$C$63,3),"") -> 5
A195: 185 | B195: 20259910113404 | C195: 2025-07-09 | D195: Persona jurídica | E195: Virtual - Correo electrónico | F195: Solicitud de documentos o información | G195: Administrativa | I195: Grupo de Contabilidad | J195: 2025-07-21 | K195: Correo electrónico | L195: 2025-07-23 | Q195: A TIEMPO | R195: 8 | S195: 0 | U195: =IFERROR(VLOOKUP(F195,Hoja1!$A$50:$C$63,2),"") -> 5 | V195: =IFERROR(VLOOKUP(F195,Hoja1!$A$50:$C$63,3),"") -> 5
A196: 186 | B196: 20259910113524 | C196: 2025-07-09 | D196: Persona jurídica | E196: Virtual - Correo electrónico | F196: Petición de interés general o particular | G196: Asesorías y charlas | I196: Grupo de Servicio al Ciudadano | J196: 2025-07-17 | K196: Correo electrónico | L196: 2025-07-30 | Q196: A TIEMPO | R196: 6 | S196: 0 | U196: =IFERROR(VLOOKUP(F196,Hoja1!$A$50:$C$63,2),"") -> 15 | V196: =IFERROR(VLOOKUP(F196,Hoja1!$A$50:$C$63,3),"") -> 15
A197: 187 | B197: 20259910113544 | C197: 2025-07-09 | D197: Persona natural | E197: Virtual - Correo electrónico | F197: Petición entre entidades | G197: Bosques | I197: Subdirección de Ecosistemas e Información Ambiental | J197: 2025-08-04 | K197: Correo electrónico | M197: Si | N197: 2025-08-06 | O197: 2025-07-23 | P197: A TIEMPO | Q197: A TIEMPO | R197: 18 | S197: 0 | U197: =IFERROR(VLOOKUP(F197,Hoja1!$A$50:$C$63,2),"") -> 10 | V197: =IFERROR(VLOOKUP(F197,Hoja1!$A$50:$C$63,3),"") -> 10
A198: 188 | B198: 20259910113554 | C198: 2025-07-09 | D198: Persona jurídica | E198: Virtual - Correo electrónico | F198: Solicitud de documentos o información | G198: Sistema de información del recurso hídrico | I198: Subdirección de Meteorología | J198: 2025-08-29 | K198: Correo electrónico | L198: 2025-07-23 | Q198: FUERA DE TIEMPO | R198: 35 | S198: 25 | U198: =IFERROR(VLOOKUP(F198,Hoja1!$A$50:$C$63,2),"") -> 5 | V198: =IFERROR(VLOOKUP(F198,Hoja1!$A$50:$C$63,3),"") -> 5
A199: 189 | B199: 20259050113684 | C199: 2025-07-09 | D199: Persona natural | E199: Formulario PQRSDF | F199: Solicitud de documentos o información | G199: Solicitud de información hidrometeorológica | I199: Grupo de Servicio al Ciudadano | J199: 2025-07-10 | K199: Correo electrónico | L199: 2025-07-23 | Q199: A TIEMPO | R199: 1 | S199: 0 | U199: =IFERROR(VLOOKUP(F199,Hoja1!$A$50:$C$63,2),"") -> 5 | V199: =IFERROR(VLOOKUP(F199,Hoja1!$A$50:$C$63,3),"") -> 5
A200: 190 | B200: 20259910113614 | C200: 2025-07-09 | D200: Persona jurídica | E200: Virtual - Correo electrónico | F200: Solicitud de documentos o información | G200: Solicitud de información hidrometeorológica | I200: Subdirección de Meteorología | J200: 2025-07-22 | K200: Correo electrónico | L200: 2025-07-23 | Q200: A TIEMPO | R200: 9 | S200: 0 | U200: =IFERROR(VLOOKUP(F200,Hoja1!$A$50:$C$63,2),"") -> 5 | V200: =IFERROR(VLOOKUP(F200,Hoja1!$A$50:$C$63,3),"") -> 5
A201: 191 | B201: 20259050113674 | C201: 2025-07-09 | D201: Persona natural | E201: Formulario PQRSDF | F201: Solicitud de documentos o información | G201: Solicitud de información hidrometeorológica | I201: Subdirección de Hidrología | J201: 2025-07-10 | K201: Correo electrónico | L201: 2025-07-23 | Q201: A TIEMPO | R201: 1 | S201: 0 | U201: =IFERROR(VLOOKUP(F201,Hoja1!$A$50:$C$63,2),"") -> 5 | V201: =IFERROR(VLOOKUP(F201,Hoja1!$A$50:$C$63,3),"") -> 5
A202: 192 | B202: 20259910113574 | C202: 2025-07-09 | D202: Persona jurídica | E202: Virtual - Correo electrónico | F202: Solicitud de documentos o información | G202: Registros ambientales | I202: Subdirección de Estudios Ambientales | J202: 2025-07-10 | K202: Correo electrónico | L202: 2025-07-23 | Q202: A TIEMPO | R202: 1 | S202: 0 | U202: =IFERROR(VLOOKUP(F202,Hoja1!$A$50:$C$63,2),"") -> 5 | V202: =IFERROR(VLOOKUP(F202,Hoja1!$A$50:$C$63,3),"") -> 5
A203: 193 | B203: 20259910113714 | C203: 2025-07-10 | D203: Persona jurídica | E203: Virtual - Correo electrónico | F203: Solicitud de documentos o información | G203: Registros ambientales | I203: Subdirección de Estudios Ambientales | J203: 2025-07-17 | K203: Correo electrónico | L203: 2025-07-24 | Q203: A TIEMPO | R203: 5 | S203: 0 | U203: =IFERROR(VLOOKUP(F203,Hoja1!$A$50:$C$63,2),"") -> 5 | V203: =IFERROR(VLOOKUP(F203,Hoja1!$A$50:$C$63,3),"") -> 5
... 1756 more rows

Sheet Control de cambios
C1: Proceso: Gestión del Servicio al Ciudadano | H1: Código: SGC-F012
H2: Versión: 04
C3: Seguimiento y control PQRSDF | H3: Vigencia: 12/09/2024
A4: CONTROL DE CAMBIOS
A5: Versión | B5: Fecha | C5: Cambios Realizados
A6: 3 | B6: 2022-05-11 | C6: Modificación del formato
A7: 4 | B7: 2024-09-12 | C7: Modificación del formato. Modificación de código, colores y accesibilidad según el SGI-P001 Procedimiento para la elaboración y control de documentos
